Workbook

Sheet Données (hidden)
E1: Distance officielle | F1: Sur les épreuvesJeune : Natation : …………..1 min 50 au 100 m Vélo : .......... …….25 km/h Course à pied : ……5 min au km
F2: Natation : ……………1 min 45 au 100 m Vélo route : ………….32 km/h Vélo (cross) : ……….15 km/h Course à pied : ……...4 min:30 au km Ski de fond : …………4 min 30 au km | O2: =K7/1000 -> 0.005
A4: Epreuve | B4: Catégorie | C4: Discipline | E4: Course | G4: Discipline | H4: Distance | I4: Marge Maxi | J4: Marge Mini | K4: Vitesse | L4: Unité | M4: Base de Temps (min / m) | N4: Temps Moyen | O4: Limite Haute 25% (min) | P4: Limite Haute 40% (min) | Q4: Limite Basse (min) | R4: Distance Moyenne | S4: Limite Haute 25% (m) | T4: Limite Haute 40% (m) | U4: Limite Basse (m) | V4: Age Mini | W4: Age Maxi | Y4: vérif distance basse épreuve assimilée / distance officielle
A5: 10 | B5: 10 | C5: 1 | D5: =CONCATENATE(A5,B5,C5) -> 10101 | E5: Triathlon | F5: Jeune 6-9 | G5: Natation | H5: 50 | I5: =H5*1.1 -> 55 | J5: =H5*0.9 -> 45 | K5: =60+50 -> 110 | L5: Sec/100m | M5: =IF(L5="Sec/100m",((K5)/60/100),(IF(L5="Km/h",60/K5/1000,(IF(L5="Min/km",K5/1000,""))))) -> 0.01833333333 | N5: =H5*M5 -> 0.9166666667 | O5: =N5*1.25 -> 1.145833333 | P5: =N5*1.4 -> 1.283333333 | Q5: =O5*0.8 -> 0.9166666667 | R5: =(N5/M5) -> 50 | S5: =O5/M5 -> 62.5 | T5: =P5/M5 -> 70 | U5: =+R5/2 -> 25 | V5: =VLOOKUP(F5,AGE!F:J,4,FALSE) -> 2013 | W5: =VLOOKUP(F5,AGE!F:J,5,FALSE) -> 2010 | Y5: =IF(U5>R5,"Attention dist basse assimilée > distance officielle",) -> 0
A6: 10 | B6: 10 | C6: 2 | D6: =CONCATENATE(A6,B6,C6) -> 10102 | E6: Triathlon | F6: Jeune 6-9 | G6: Cyclisme | H6: 1000 | I6: =H6*1.1 -> 1100 | J6: =H6*0.9 -> 900 | K6: 25 | L6: Km/h | M6: =IF(L6="Sec/100m",((K6)/60/100),(IF(L6="Km/h",60/K6/1000,(IF(L6="Min/km",K6/1000,""))))) -> 0.0024 | N6: =H6*M6 -> 2.4 | O6: =N6*1.25 -> 3 | P6: =N6*1.4 -> 3.36 | Q6: =O6*0.8 -> 2.4 | R6: =N6/M6 -> 1000 | S6: =O6/M6 -> 1250 | T6: =P6/M6 -> 1400 | U6: =+R6/2 -> 500 | V6: =VLOOKUP(F6,AGE!F:J,4,FALSE) -> 2013 | W6: =VLOOKUP(F6,AGE!F:J,5,FALSE) -> 2010 | Y6: 0
A7: 10 | B7: 10 | C7: 3 | D7: 10103 | E7: Triathlon | F7: Jeune 6-9 | G7: Course à pied | H7: 500 | I7: 550 | J7: 450 | K7: 5 | L7: Min/km | M7: 0.005 | N7: 2.5 | O7: 3.125 | P7: 3.5 | Q7: =O7*0.8 -> 2.5 | R7: 500 | S7: 625 | T7: 700 | U7: =+R7/2 -> 250 | V7: =VLOOKUP(F7,AGE!F:J,4,FALSE) -> 2013 | W7: =VLOOKUP(F7,AGE!F:J,5,FALSE) -> 2010 | Y7: 0
A8: 10 | B8: 10 | C8: 4 | D8: 10104 | E8: Triathlon | F8: Jeune 6-9 | G8: Total | H8: =SUM(H5:H7) -> 1550 | I8: =SUM(I5:I7) -> 1705 | J8: 1395 | N8: 5.816666667 | O8: 7.270833333 | R8: =SUM(R5:R7) -> 1550 | S8: =SUM(S5:S7) -> 1937.5 | U8: =SUM(U5:U7) -> 775 | V8: =VLOOKUP(F8,AGE!F:J,4,FALSE) -> 2013 | W8: =VLOOKUP(F8,AGE!F:J,5,FALSE) -> 2010 | Y8: 0
A9: 10 | B9: 20 | C9: 1 | D9: 10201 | E9: Triathlon | F9: Jeune 8-11 | G9: Natation | H9: 100 | I9: =H9*1.1 -> 110 | J9: =H9*0.9 -> 90 | K9: =60+50 -> 110 | L9: Sec/100m | M9: =IF(L9="Sec/100m",((K9)/60/100),(IF(L9="Km/h",60/K9/1000,(IF(L9="Min/km",K9/1000,""))))) -> 0.01833333333 | N9: =H9*M9 -> 1.833333333 | O9: =N9*1.25 -> 2.291666667 | P9: =N9*1.4 -> 2.566666667 | Q9: =O5 -> 1.145833333 | R9: =N9/M9 -> 100 | S9: =O9/M9 -> 125 | T9: =P9/M9 -> 140 | U9: =S5 -> 62.5 | V9: =VLOOKUP(F9,AGE!F:J,4,FALSE) -> 2011 | W9: =VLOOKUP(F9,AGE!F:J,5,FALSE) -> 2008 | Y9: 0
A10: 10 | B10: 20 | C10: 2 | D10: 10202 | E10: Triathlon | F10: Jeune 8-11 | G10: Cyclisme | H10: 2000 | I10: =H10*1.1 -> 2200 | J10: =H10*0.9 -> 1800 | K10: 25 | L10: Km/h | M10: =IF(L10="Sec/100m",((K10)/60/100),(IF(L10="Km/h",60/K10/1000,(IF(L10="Min/km",K10/1000,""))))) -> 0.0024 | N10: =H10*M10 -> 4.8 | O10: =N10*1.25 -> 6 | P10: =N10*1.4 -> 6.72 | Q10: =O6 -> 3 | R10: =N10/M10 -> 2000 | S10: =O10/M10 -> 2500 | T10: =P10/M10 -> 2800 | U10: =S6 -> 1250 | V10: =VLOOKUP(F10,AGE!F:J,4,FALSE) -> 2011 | W10: =VLOOKUP(F10,AGE!F:J,5,FALSE) -> 2008 | Y10: 0
A11: 10 | B11: 20 | C11: 3 | D11: 10203 | E11: Triathlon | F11: Jeune 8-11 | G11: Course à pied | H11: 1000 | I11: 1100 | J11: 900 | K11: 5 | L11: Min/km | M11: 0.005 | N11: 5 | O11: 6.25 | P11: 7 | Q11: 3.125 | R11: 1000 | S11: 1250 | T11: 1400 | U11: =S7 -> 625 | V11: =VLOOKUP(F11,AGE!F:J,4,FALSE) -> 2011 | W11: =VLOOKUP(F11,AGE!F:J,5,FALSE) -> 2008 | Y11: 0
A12: 10 | B12: 20 | C12: 4 | D12: 10204 | E12: Triathlon | F12: Jeune 8-11 | G12: Total | H12: =SUM(H9:H11) -> 3100 | I12: =SUM(I9:I11) -> 3410 | J12: =SUM(J9:J11) -> 2790 | N12: =SUM(N9:N11) -> 11.63333333 | O12: =SUM(O9:O11) -> 14.54166667 | Q12: =SUM(Q9:Q11) -> 7.270833333 | R12: =SUM(R9:R11) -> 3100 | S12: =SUM(S9:S11) -> 3875 | U12: =SUM(U9:U11) -> 1937.5 | V12: =VLOOKUP(F12,AGE!F:J,4,FALSE) -> 2011 | W12: =VLOOKUP(F12,AGE!F:J,5,FALSE) -> 2008 | Y12: 0
A13: 10 | B13: 30 | C13: 1 | D13: 10301 | E13: Triathlon | F13: Jeune 10-13 | G13: Natation | H13: 200 | I13: =H13*1.1 -> 220 | J13: =H13*0.9 -> 180 | K13: =60+50 -> 110 | L13: Sec/100m | M13: =IF(L13="Sec/100m",((K13)/60/100),(IF(L13="Km/h",60/K13/1000,(IF(L13="Min/km",K13/1000,""))))) -> 0.01833333333 | N13: =H13*M13 -> 3.666666667 | O13: =N13*1.25 -> 4.583333333 | P13: =N13*1.4 -> 5.133333333 | Q13: =O9 -> 2.291666667 | R13: =N13/M13 -> 200 | S13: =O13/M13 -> 250 | T13: =P13/M13 -> 280 | U13: =S9 -> 125 | V13: =VLOOKUP(F13,AGE!F:J,4,FALSE) -> 2009 | W13: =VLOOKUP(F13,AGE!F:J,5,FALSE) -> 2006 | Y13: 0
A14: 10 | B14: 30 | C14: 2 | D14: 10302 | E14: Triathlon | F14: Jeune 10-13 | G14: Cyclisme | H14: 4000 | I14: =H14*1.1 -> 4400 | J14: =H14*0.9 -> 3600 | K14: 25 | L14: Km/h | M14: =IF(L14="Sec/100m",((K14)/60/100),(IF(L14="Km/h",60/K14/1000,(IF(L14="Min/km",K14/1000,""))))) -> 0.0024 | N14: =H14*M14 -> 9.6 | O14: =N14*1.25 -> 12 | P14: =N14*1.4 -> 13.44 | Q14: =O10 -> 6 | R14: =N14/M14 -> 4000 | S14: =O14/M14 -> 5000 | T14: =P14/M14 -> 5600 | U14: =S10 -> 2500 | V14: =VLOOKUP(F14,AGE!F:J,4,FALSE) -> 2009 | W14: =VLOOKUP(F14,AGE!F:J,5,FALSE) -> 2006 | Y14: 0
A15: 10 | B15: 30 | C15: 3 | D15: 10303 | E15: Triathlon | F15: Jeune 10-13 | G15: Course à pied | H15: 1500 | I15: 1650 | J15: 1350 | K15: 5 | L15: Min/km | M15: 0.005 | N15: 7.5 | O15: 9.375 | P15: 10.5 | Q15: 6.25 | R15: 1500 | S15: 1875 | T15: 2100 | U15: =S11 -> 1250 | V15: =VLOOKUP(F15,AGE!F:J,4,FALSE) -> 2009 | W15: =VLOOKUP(F15,AGE!F:J,5,FALSE) -> 2006 | Y15: 0
A16: 10 | B16: 30 | C16: 4 | D16: 10304 | E16: Triathlon | F16: Jeune 10-13 | G16: Total | H16: =SUM(H13:H15) -> 5700 | I16: =SUM(I13:I15) -> 6270 | J16: =SUM(J13:J15) -> 5130 | N16: =SUM(N13:N15) -> 20.76666667 | O16: =SUM(O13:O15) -> 25.95833333 | Q16: =SUM(Q13:Q15) -> 14.54166667 | R16: =SUM(R13:R15) -> 5700 | S16: =SUM(S13:S15) -> 7125 | U16: =SUM(U13:U15) -> 3875 | V16: =VLOOKUP(F16,AGE!F:J,4,FALSE) -> 2009 | W16: =VLOOKUP(F16,AGE!F:J,5,FALSE) -> 2006 | Y16: 0
A17: 10 | B17: 40 | C17: 1 | D17: 10401 | E17: Triathlon | F17: Jeune 12-19 | G17: Natation | H17: 300 | I17: =H17*1.1 -> 330 | J17: =H17*0.9 -> 270 | K17: =60+50 -> 110 | L17: Sec/100m | M17: =IF(L17="Sec/100m",((K17)/60/100),(IF(L17="Km/h",60/K17/1000,(IF(L17="Min/km",K17/1000,""))))) -> 0.01833333333 | N17: =H17*M17 -> 5.5 | O17: =N17*1.25 -> 6.875 | P17: =N17*1.4 -> 7.7 | Q17: =O13 -> 4.583333333 | R17: =N17/M17 -> 300 | S17: =O17/M17 -> 375 | T17: =P17/M17 -> 420 | U17: =S13 -> 250 | V17: =VLOOKUP(F17,AGE!F:J,4,FALSE) -> 2007 | W17: =VLOOKUP(F17,AGE!F:J,5,FALSE) -> 2000 | Y17: 0
A18: 10 | B18: 40 | C18: 2 | D18: 10402 | E18: Triathlon | F18: Jeune 12-19 | G18: Cyclisme | H18: 6000 | I18: =H18*1.1 -> 6600 | J18: =H18*0.9 -> 5400 | K18: 25 | L18: Km/h | M18: =IF(L18="Sec/100m",((K18)/60/100),(IF(L18="Km/h",60/K18/1000,(IF(L18="Min/km",K18/1000,""))))) -> 0.0024 | N18: =H18*M18 -> 14.4 | O18: =N18*1.25 -> 18 | P18: =N18*1.4 -> 20.16 | Q18: =O14 -> 12 | R18: =N18/M18 -> 6000 | S18: =O18/M18 -> 7500 | T18: =P18/M18 -> 8400 | U18: =S14 -> 5000 | V18: =VLOOKUP(F18,AGE!F:J,4,FALSE) -> 2007 | W18: =VLOOKUP(F18,AGE!F:J,5,FALSE) -> 2000 | Y18: 0
A19: 10 | B19: 40 | C19: 3 | D19: 10403 | E19: Triathlon | F19: Jeune 12-19 | G19: Course à pied | H19: 2000 | I19: 2200 | J19: 1800 | K19: 5 | L19: Min/km | M19: 0.005 | N19: 10 | O19: 12.5 | P19: 14 | Q19: 9.375 | R19: 2000 | S19: 2500 | T19: 2800 | U19: =S15 -> 1875 | V19: =VLOOKUP(F19,AGE!F:J,4,FALSE) -> 2007 | W19: =VLOOKUP(F19,AGE!F:J,5,FALSE) -> 2000 | Y19: 0
A20: 10 | B20: 40 | C20: 4 | D20: 10404 | E20: Triathlon | F20: Jeune 12-19 | G20: Total | H20: =SUM(H17:H19) -> 8300 | I20: =SUM(I17:I19) -> 9130 | J20: =SUM(J17:J19) -> 7470 | N20: =SUM(N17:N19) -> 29.9 | O20: =SUM(O17:O19) -> 37.375 | Q20: =SUM(Q17:Q19) -> 25.95833333 | R20: =SUM(R17:R19) -> 8300 | S20: =SUM(S17:S19) -> 10375 | U20: =SUM(U17:U19) -> 7125 | V20: =VLOOKUP(F20,AGE!F:J,4,FALSE) -> 2007 | W20: =VLOOKUP(F20,AGE!F:J,5,FALSE) -> 2000 | Y20: 0
A21: 10 | B21: 50 | C21: 1 | D21: 10501 | E21: Triathlon | F21: Distance XS | G21: Natation | H21: 400 | I21: =H21*1.1 -> 440 | J21: =H21*0.9 -> 360 | K21: 105 | L21: Sec/100m | M21: =IF(L21="Sec/100m",((K21)/60/100),(IF(L21="Km/h",60/K21/1000,(IF(L21="Min/km",K21/1000,""))))) -> 0.0175 | N21: =H21*M21 -> 7 | O21: =N21*1.25 -> 8.75 | P21: 9.8 | Q21: =O17 -> 6.875 | R21: =N21/M21 -> 400 | S21: =O21/M21 -> 500 | T21: =P21/M21 -> 560 | U21: =(N21*0.5)/M21 -> 200 | V21: =VLOOKUP(F21,AGE!F:J,4,FALSE) -> 2007 | W21: =VLOOKUP(F21,AGE!F:J,5,FALSE) -> 1920 | Y21: 0
A22: 10 | B22: 50 | C22: 2 | D22: 10502 | E22: Triathlon | F22: Distance XS | G22: Cyclisme | H22: 10000 | I22: =H22*1.1 -> 11000 | J22: =H22*0.9 -> 9000 | K22: 32 | L22: Km/h | M22: =IF(L22="Sec/100m",((K22)/60/100),(IF(L22="Km/h",60/K22/1000,(IF(L22="Min/km",K22/1000,""))))) -> 0.001875 | N22: =H22*M22 -> 18.75 | O22: =N22*1.25 -> 23.4375 | P22: 26.25 | Q22: =O18 -> 18 | R22: =N22/M22 -> 10000 | S22: =O22/M22 -> 12500 | T22: =P22/M22 -> 14000 | U22: =(N22*0.5)/M22 -> 5000 | V22: =VLOOKUP(F22,AGE!F:J,4,FALSE) -> 2007 | W22: =VLOOKUP(F22,AGE!F:J,5,FALSE) -> 1920 | Y22: 0
A23: 10 | B23: 50 | C23: 3 | D23: 10503 | E23: Triathlon | F23: Distance XS | G23: Course à pied | H23: 2500 | I23: 2750 | J23: 2250 | K23: 4.5 | L23: Min/km | M23: 0.0045 | N23: 11.25 | O23: 14.0625 | P23: 15.75 | Q23: 12.5 | R23: 2500 | S23: =O23/M23 -> 3125 | T23: =P23/M23 -> 3500 | U23: =(N23*0.5)/M23 -> 1250 | V23: =VLOOKUP(F23,AGE!F:J,4,FALSE) -> 2007 | W23: =VLOOKUP(F23,AGE!F:J,5,FALSE) -> 1920 | Y23: 0
A24: 10 | B24: 50 | C24: 4 | D24: 10504 | E24: Triathlon | F24: Distance XS | G24: Total | H24: =SUM(H21:H23) -> 12900 | I24: =SUM(I21:I23) -> 14190 | J24: =SUM(J21:J23) -> 11610 | N24: =SUM(N21:N23) -> 37 | O24: =SUM(O21:O23) -> 46.25 | Q24: =SUM(Q21:Q23) -> 37.375 | R24: =SUM(R21:R23) -> 12900 | S24: =SUM(S21:S23) -> 16125 | U24: =SUM(U21:U23) -> 6450 | V24: =VLOOKUP(F24,AGE!F:J,4,FALSE) -> 2007 | W24: =VLOOKUP(F24,AGE!F:J,5,FALSE) -> 1920 | Y24: 0
A25: 10 | B25: 60 | C25: 1 | D25: 10601 | E25: Triathlon | F25: Distance S | G25: Natation | H25: 750 | I25: =H25*1.1 -> 825 | J25: =H25*0.9 -> 675 | K25: 105 | L25: Sec/100m | M25: =IF(L25="Sec/100m",((K25)/60/100),(IF(L25="Km/h",60/K25/1000,(IF(L25="Min/km",K25/1000,""))))) -> 0.0175 | N25: =H25*M25 -> 13.125 | O25: =N25*1.25 -> 16.40625 | P25: 18.375 | Q25: =O21 -> 8.75 | R25: =N25/M25 -> 750 | S25: =O25/M25 -> 937.5 | T25: =P25/M25 -> 1050 | U25: =S21 -> 500 | V25: =VLOOKUP(F25,AGE!F:J,4,FALSE) -> 2003 | W25: =VLOOKUP(F25,AGE!F:J,5,FALSE) -> 1920 | Y25: 0
A26: 10 | B26: 60 | C26: 2 | D26: 10602 | E26: Triathlon | F26: Distance S | G26: Cyclisme | H26: 20000 | I26: =H26*1.1 -> 22000 | J26: =H26*0.9 -> 18000 | K26: 32 | L26: Km/h | M26: =IF(L26="Sec/100m",((K26)/60/100),(IF(L26="Km/h",60/K26/1000,(IF(L26="Min/km",K26/1000,""))))) -> 0.001875 | N26: =H26*M26 -> 37.5 | O26: =N26*1.25 -> 46.875 | P26: 52.5 | Q26: =O22 -> 23.4375 | R26: =N26/M26 -> 20000 | S26: =O26/M26 -> 25000 | T26: =P26/M26 -> 28000 | U26: =S22 -> 12500 | V26: =VLOOKUP(F26,AGE!F:J,4,FALSE) -> 2003 | W26: =VLOOKUP(F26,AGE!F:J,5,FALSE) -> 1920 | Y26: 0
A27: 10 | B27: 60 | C27: 3 | D27: 10603 | E27: Triathlon | F27: Distance S | G27: Course à pied | H27: 5000 | I27: 5500 | J27: 4500 | K27: 4.5 | L27: Min/km | M27: 0.0045 | N27: 22.5 | O27: 28.125 | P27: 31.5 | Q27: =O23 -> 14.0625 | R27: 5000 | S27: =O27/M27 -> 6250 | T27: =P27/M27 -> 7000 | U27: =S23 -> 3125 | V27: =VLOOKUP(F27,AGE!F:J,4,FALSE) -> 2003 | W27: =VLOOKUP(F27,AGE!F:J,5,FALSE) -> 1920 | Y27: 0
A28: 10 | B28: 60 | C28: 4 | D28: 10604 | E28: Triathlon | F28: Distance S | G28: Total | H28: =SUM(H25:H27) -> 25750 | I28: =SUM(I25:I27) -> 28325 | J28: =SUM(J25:J27) -> 23175 | N28: =SUM(N25:N27) -> 73.125 | O28: =SUM(O25:O27) -> 91.40625 | Q28: =SUM(Q25:Q27) -> 46.25 | R28: =SUM(R25:R27) -> 25750 | S28: =SUM(S25:S27) -> 32187.5 | U28: =SUM(U25:U27) -> 16125 | V28: =VLOOKUP(F28,AGE!F:J,4,FALSE) -> 2003 | W28: =VLOOKUP(F28,AGE!F:J,5,FALSE) -> 1920 | Y28: 0
A29: 10 | B29: 70 | C29: 1 | D29: 10701 | E29: Triathlon | F29: Distance M | G29: Natation | H29: 1500 | I29: =H29*1.1 -> 1650 | J29: =H29*0.9 -> 1350 | K29: 105 | L29: Sec/100m | M29: =IF(L29="Sec/100m",((K29)/60/100),(IF(L29="Km/h",60/K29/1000,(IF(L29="Min/km",K29/1000,""))))) -> 0.0175 | N29: =H29*M29 -> 26.25 | O29: =N29*1.25 -> 32.8125 | P29: 36.75 | Q29: =O25 -> 16.40625 | R29: =N29/M29 -> 1500 | S29: =O29/M29 -> 1875 | T29: =P29/M29 -> 2100 | U29: =S25 -> 937.5 | V29: =VLOOKUP(F29,AGE!F:J,4,FALSE) -> 2001 | W29: =VLOOKUP(F29,AGE!F:J,5,FALSE) -> 1920 | Y29: 0
A30: 10 | B30: 70 | C30: 2 | D30: 10702 | E30: Triathlon | F30: Distance M | G30: Cyclisme | H30: 40000 | I30: =H30*1.1 -> 44000 | J30: =H30*0.9 -> 36000 | K30: 32 | L30: Km/h | M30: =IF(L30="Sec/100m",((K30)/60/100),(IF(L30="Km/h",60/K30/1000,(IF(L30="Min/km",K30/1000,""))))) -> 0.001875 | N30: =H30*M30 -> 75 | O30: =N30*1.25 -> 93.75 | P30: 105 | Q30: =O26 -> 46.875 | R30: =N30/M30 -> 40000 | S30: =O30/M30 -> 50000 | T30: =P30/M30 -> 56000 | U30: =S26 -> 25000 | V30: =VLOOKUP(F30,AGE!F:J,4,FALSE) -> 2001 | W30: =VLOOKUP(F30,AGE!F:J,5,FALSE) -> 1920 | Y30: 0
A31: 10 | B31: 70 | C31: 3 | D31: 10703 | E31: Triathlon | F31: Distance M | G31: Course à pied | H31: 10000 | I31: 11000 | J31: 9000 | K31: 4.5 | L31: Min/km | M31: 0.0045 | N31: 45 | O31: 56.25 | P31: 63 | Q31: 28.125 | R31: 10000 | S31: 12500 | T31: 14000 | U31: =S27 -> 6250 | V31: =VLOOKUP(F31,AGE!F:J,4,FALSE) -> 2001 | W31: =VLOOKUP(F31,AGE!F:J,5,FALSE) -> 1920 | Y31: 0
A32: 10 | B32: 70 | C32: 4 | D32: 10704 | E32: Triathlon | F32: Distance M | G32: Total | H32: =SUM(H29:H31) -> 51500 | I32: =SUM(I29:I31) -> 56650 | J32: =SUM(J29:J31) -> 46350 | N32: =SUM(N29:N31) -> 146.25 | O32: =SUM(O29:O31) -> 182.8125 | Q32: =SUM(Q29:Q31) -> 91.40625 | R32: =SUM(R29:R31) -> 51500 | S32: =SUM(S29:S31) -> 64375 | U32: =SUM(U29:U31) -> 32187.5 | V32: =VLOOKUP(F32,AGE!F:J,4,FALSE) -> 2001 | W32: =VLOOKUP(F32,AGE!F:J,5,FALSE) -> 1920 | Y32: 0
A33: 10 | B33: 80 | C33: 1 | D33: 10801 | E33: Triathlon | F33: Distance L | G33: Natation | H33: 3000 | I33: =H33*1.1 -> 3300 | J33: =H33*0.9 -> 2700 | K33: 105 | L33: Sec/100m | M33: =IF(L33="Sec/100m",((K33)/60/100),(IF(L33="Km/h",60/K33/1000,(IF(L33="Min/km",K33/1000,""))))) -> 0.0175 | N33: =H33*M33 -> 52.5 | O33: =N33*1.25 -> 65.625 | Q33: =O29 -> 32.8125 | R33: =N33/M33 -> 3000 | S33: =O33/M33 -> 3750 | T33: =P33/M33 -> 0 | U33: =S29 -> 1875 | V33: =VLOOKUP(F33,AGE!F:J,4,FALSE) -> 2001 | W33: =VLOOKUP(F33,AGE!F:J,5,FALSE) -> 1920 | Y33: 0
A34: 10 | B34: 80 | C34: 2 | D34: 10802 | E34: Triathlon | F34: Distance L | G34: Cyclisme | H34: 80000 | I34: =H34*1.1 -> 88000 | J34: =H34*0.9 -> 72000 | K34: 32 | L34: Km/h | M34: =IF(L34="Sec/100m",((K34)/60/100),(IF(L34="Km/h",60/K34/1000,(IF(L34="Min/km",K34/1000,""))))) -> 0.001875 | N34: =H34*M34 -> 150 | O34: =N34*1.25 -> 187.5 | Q34: =O30 -> 93.75 | R34: =N34/M34 -> 80000 | S34: =O34/M34 -> 100000 | T34: =P34/M34 -> 0 | U34: =S30 -> 50000 | V34: =VLOOKUP(F34,AGE!F:J,4,FALSE) -> 2001 | W34: =VLOOKUP(F34,AGE!F:J,5,FALSE) -> 1920 | Y34: 0
A35: 10 | B35: 80 | C35: 3 | D35: 10803 | E35: Triathlon | F35: Distance L | G35: Course à pied | H35: 20000 | I35: 22000 | J35: 18000 | K35: 4.5 | L35: Min/km | M35: 0.0045 | N35: 90 | O35: 112.5 | Q35: 56.25 | R35: 20000 | S35: 25000 | T35: 0 | U35: =S31 -> 12500 | V35: =VLOOKUP(F35,AGE!F:J,4,FALSE) -> 2001 | W35: =VLOOKUP(F35,AGE!F:J,5,FALSE) -> 1920 | Y35: 0
A36: 10 | B36: 80 | C36: 4 | D36: 10804 | E36: Triathlon | F36: Distance L | G36: Total | H36: =SUM(H33:H35) -> 103000 | I36: =SUM(I33:I35) -> 113300 | J36: =SUM(J33:J35) -> 92700 | N36: =SUM(N33:N35) -> 292.5 | O36: =SUM(O33:O35) -> 365.625 | Q36: =SUM(Q33:Q35) -> 182.8125 | R36: =SUM(R33:R35) -> 103000 | S36: =SUM(S33:S35) -> 128750 | U36: =SUM(U33:U35) -> 64375 | V36: =VLOOKUP(F36,AGE!F:J,4,FALSE) -> 2001 | W36: =VLOOKUP(F36,AGE!F:J,5,FALSE) -> 1920 | Y36: 0
A37: 10 | B37: 90 | C37: 1 | D37: 10901 | E37: Triathlon | F37: Distance XL | G37: Natation | H37: 4000 | I37: =H37*1.1 -> 4400 | J37: =H37*0.9 -> 3600 | K37: 105 | L37: Sec/100m | M37: =IF(L37="Sec/100m",((K37)/60/100),(IF(L37="Km/h",60/K37/1000,(IF(L37="Min/km",K37/1000,""))))) -> 0.0175 | N37: =H37*M37 -> 70 | O37: =N37*1.25 -> 87.5 | Q37: =O33 -> 65.625 | R37: =N37/M37 -> 4000 | S37: =O37/M37 -> 5000 | T37: =P37/M37 -> 0 | U37: =(N37*0.75)/M37 -> 3000 | V37: =VLOOKUP(F37,AGE!F:J,4,FALSE) -> 2001 | W37: =VLOOKUP(F37,AGE!F:J,5,FALSE) -> 1920 | Y37: 0
A38: 10 | B38: 90 | C38: 2 | D38: 10902 | E38: Triathlon | F38: Distance XL | G38: Cyclisme | H38: 120000 | I38: =H38*1.1 -> 132000 | J38: =H38*0.9 -> 108000 | K38: 32 | L38: Km/h | M38: =IF(L38="Sec/100m",((K38)/60/100),(IF(L38="Km/h",60/K38/1000,(IF(L38="Min/km",K38/1000,""))))) -> 0.001875 | N38: =H38*M38 -> 225 | O38: =N38*1.25 -> 281.25 | Q38: =O34 -> 187.5 | R38: =N38/M38 -> 120000 | S38: =O38/M38 -> 150000 | T38: =P38/M38 -> 0 | U38: =(N38*0.75)/M38 -> 90000 | V38: =VLOOKUP(F38,AGE!F:J,4,FALSE) -> 2001 | W38: =VLOOKUP(F38,AGE!F:J,5,FALSE) -> 1920 | Y38: 0
A39: 10 | B39: 90 | C39: 3 | D39: 10903 | E39: Triathlon | F39: Distance XL | G39: Course à pied | H39: 30000 | I39: 33000 | J39: 27000 | K39: 4.5 | L39: Min/km | M39: 0.0045 | N39: 135 | O39: 168.75 | Q39: 112.5 | R39: 30000 | S39: 37500 | T39: 0 | U39: 22500 | V39: =VLOOKUP(F39,AGE!F:J,4,FALSE) -> 2001 | W39: =VLOOKUP(F39,AGE!F:J,5,FALSE) -> 1920 | Y39: 0
A40: 10 | B40: 90 | C40: 4 | D40: 10904 | E40: Triathlon | F40: Distance XL | G40: Total | H40: =SUM(H37:H39) -> 154000 | I40: =SUM(I37:I39) -> 169400 | J40: =SUM(J37:J39) -> 138600 | N40: =SUM(N37:N39) -> 430 | O40: =SUM(O37:O39) -> 537.5 | Q40: =SUM(Q37:Q39) -> 365.625 | R40: =SUM(R37:R39) -> 154000 | S40: =SUM(S37:S39) -> 192500 | U40: =SUM(U37:U39) -> 115500 | V40: =VLOOKUP(F40,AGE!F:J,4,FALSE) -> 2001 | W40: =VLOOKUP(F40,AGE!F:J,5,FALSE) -> 1920 | Y40: 0
A41: 10 | B41: 91 | C41: 1 | D41: 10911 | E41: Triathlon | F41: Distance XXL | G41: Natation | H41: 3800 | I41: =H41*1.1 -> 4180 | J41: =H41*0.9 -> 3420 | K41: 105 | L41: Sec/100m | M41: =IF(L41="Sec/100m",((K41)/60/100),(IF(L41="Km/h",60/K41/1000,(IF(L41="Min/km",K41/1000,""))))) -> 0.0175 | N41: =H41*M41 -> 66.5 | O41: =N41*1.25 -> 83.125 | Q41: =O37 -> 87.5 | R41: =N41/M41 -> 3800 | S41: =O41/M41 -> 4750 | T41: =P41/M41 -> 0 | U41: =(N41*0.75)/M41 -> 2850 | V41: =VLOOKUP(F41,AGE!F:J,4,FALSE) -> 2001 | W41: =VLOOKUP(F41,AGE!F:J,5,FALSE) -> 1920 | Y41: 0
A42: 10 | B42: 91 | C42: 2 | D42: 10912 | E42: Triathlon | F42: Distance XXL | G42: Cyclisme | H42: 180000 | I42: =H42*1.1 -> 198000 | J42: =H42*0.9 -> 162000 | K42: 32 | L42: Km/h | M42: =IF(L42="Sec/100m",((K42)/60/100),(IF(L42="Km/h",60/K42/1000,(IF(L42="Min/km",K42/1000,""))))) -> 0.001875 | N42: =H42*M42 -> 337.5 | O42: =N42*1.25 -> 421.875 | Q42: =O38 -> 281.25 | R42: =N42/M42 -> 180000 | S42: =O42/M42 -> 225000 | T42: =P42/M42 -> 0 | U42: =(N42*0.75)/M42 -> 135000 | V42: =VLOOKUP(F42,AGE!F:J,4,FALSE) -> 2001 | W42: =VLOOKUP(F42,AGE!F:J,5,FALSE) -> 1920 | Y42: 0
A43: 10 | B43: 91 | C43: 3 | D43: 10913 | E43: Triathlon | F43: Distance XXL | G43: Course à pied | H43: 42195 | I43: 46414.5 | J43: 37975.5 | K43: 4.5 | L43: Min/km | M43: 0.0045 | N43: 189.8775 | O43: 237.346875 | Q43: 168.75 | R43: 42195 | S43: 52743.75 | T43: 0 | U43: 31646.25 | V43: =VLOOKUP(F43,AGE!F:J,4,FALSE) -> 2001 | W43: =VLOOKUP(F43,AGE!F:J,5,FALSE) -> 1920 | Y43: 0
A44: 10 | B44: 91 | C44: 4 | D44: 10914 | E44: Triathlon | F44: Distance XXL | G44: Total | H44: =SUM(H41:H43) -> 225995 | I44: =SUM(I41:I43) -> 248594.5 | J44: =SUM(J41:J43) -> 203395.5 | N44: =SUM(N41:N43) -> 593.8775 | O44: =SUM(O41:O43) -> 742.346875 | Q44: =SUM(Q41:Q43) -> 537.5 | R44: =SUM(R41:R43) -> 225995 | S44: =SUM(S41:S43) -> 282493.75 | U44: =SUM(U41:U43) -> 169496.25 | V44: =VLOOKUP(F44,AGE!F:J,4,FALSE) -> 2001 | W44: =VLOOKUP(F44,AGE!F:J,5,FALSE) -> 1920 | Y44: 0
A45: 20 | B45: 10 | C45: 1 | D45: 20101 | E45: Cross Triathlon | F45: Jeune 6-9 | G45: Natation | H45: 50 | I45: =H45*1.1 -> 55 | J45: =H45*0.9 -> 45 | K45: 110 | L45: Sec/100m | M45: =IF(L45="Sec/100m",((K45)/60/100),(IF(L45="Km/h",60/K45/1000,(IF(L45="Min/km",K45/1000,""))))) -> 0.01833333333 | N45: =H45*M45 -> 0.9166666667 | O45: =N45*1.25 -> 1.145833333 | P45: =N45*1.4 -> 1.283333333 | Q45: =O41 -> 83.125 | R45: =N45/M45 -> 50 | S45: =O45/M45 -> 62.5 | T45: =P45/M45 -> 70 | U45: =+R45/2 -> 25 | V45: =VLOOKUP(F45,AGE!F:J,4,FALSE) -> 2013 | W45: =VLOOKUP(F45,AGE!F:J,5,FALSE) -> 2010 | Y45: 0
A46: 20 | B46: 10 | C46: 2 | D46: 20102 | E46: Cross Triathlon | F46: Jeune 6-9 | G46: Cyclisme | H46: 1000 | I46: =H46*1.1 -> 1100 | J46: =H46*0.9 -> 900 | K46: 15 | L46: Km/h | M46: =IF(L46="Sec/100m",((K46)/60/100),(IF(L46="Km/h",60/K46/1000,(IF(L46="Min/km",K46/1000,""))))) -> 0.004 | N46: =H46*M46 -> 4 | O46: =N46*1.25 -> 5 | P46: =N46*1.4 -> 5.6 | Q46: =O42 -> 421.875 | R46: =N46/M46 -> 1000 | S46: =O46/M46 -> 1250 | T46: =P46/M46 -> 1400 | U46: =+R46/2 -> 500 | V46: =VLOOKUP(F46,AGE!F:J,4,FALSE) -> 2013 | W46: =VLOOKUP(F46,AGE!F:J,5,FALSE) -> 2010 | Y46: 0
A47: 20 | B47: 10 | C47: 3 | D47: 20103 | E47: Cross Triathlon | F47: Jeune 6-9 | G47: Course à pied | H47: 500 | I47: 550 | J47: 450 | K47: 5 | L47: Min/km | M47: 0.005 | N47: 2.5 | O47: 3.125 | P47: 3.5 | Q47: 237.346875 | R47: 500 | S47: 625 | T47: 700 | U47: =+R47/2 -> 250 | V47: =VLOOKUP(F47,AGE!F:J,4,FALSE) -> 2013 | W47: =VLOOKUP(F47,AGE!F:J,5,FALSE) -> 2010 | Y47: 0
A48: 20 | B48: 10 | C48: 4 | D48: 20104 | E48: Cross Triathlon | F48: Jeune 6-9 | G48: Total | H48: =SUM(H45:H47) -> 1550 | I48: =SUM(I45:I47) -> 1705 | J48: =SUM(J45:J47) -> 1395 | N48: =SUM(N45:N47) -> 7.416666667 | O48: =SUM(O45:O47) -> 9.270833333 | Q48: =SUM(Q45:Q47) -> 742.346875 | R48: =SUM(R45:R47) -> 1550 | S48: =SUM(S45:S47) -> 1937.5 | U48: =SUM(U45:U47) -> 775 | V48: =VLOOKUP(F48,AGE!F:J,4,FALSE) -> 2013 | W48: =VLOOKUP(F48,AGE!F:J,5,FALSE) -> 2010 | Y48: 0
A49: 20 | B49: 20 | C49: 1 | D49: 20201 | E49: Cross Triathlon | F49: Jeune 8-11 | G49: Natation | H49: 100 | I49: =H49*1.1 -> 110 | J49: =H49*0.9 -> 90 | K49: 110 | L49: Sec/100m | M49: =IF(L49="Sec/100m",((K49)/60/100),(IF(L49="Km/h",60/K49/1000,(IF(L49="Min/km",K49/1000,""))))) -> 0.01833333333 | N49: =H49*M49 -> 1.833333333 | O49: =N49*1.25 -> 2.291666667 | P49: =N49*1.4 -> 2.566666667 | Q49: =O45 -> 1.145833333 | R49: =N49/M49 -> 100 | S49: =O49/M49 -> 125 | T49: =P49/M49 -> 140 | U49: =S45 -> 62.5 | V49: =VLOOKUP(F49,AGE!F:J,4,FALSE) -> 2011 | W49: =VLOOKUP(F49,AGE!F:J,5,FALSE) -> 2008 | Y49: 0
A50: 20 | B50: 20 | C50: 2 | D50: 20202 | E50: Cross Triathlon | F50: Jeune 8-11 | G50: Cyclisme | H50: 2000 | I50: =H50*1.1 -> 2200 | J50: =H50*0.9 -> 1800 | K50: 15 | L50: Km/h | M50: =IF(L50="Sec/100m",((K50)/60/100),(IF(L50="Km/h",60/K50/1000,(IF(L50="Min/km",K50/1000,""))))) -> 0.004 | N50: =H50*M50 -> 8 | O50: =N50*1.25 -> 10 | P50: =N50*1.4 -> 11.2 | Q50: =O46 -> 5 | R50: =N50/M50 -> 2000 | S50: =O50/M50 -> 2500 | T50: =P50/M50 -> 2800 | U50: =S46 -> 1250 | V50: =VLOOKUP(F50,AGE!F:J,4,FALSE) -> 2011 | W50: =VLOOKUP(F50,AGE!F:J,5,FALSE) -> 2008 | Y50: 0
A51: 20 | B51: 20 | C51: 3 | D51: 20203 | E51: Cross Triathlon | F51: Jeune 8-11 | G51: Course à pied | H51: 1000 | I51: 1100 | J51: 900 | K51: 5 | L51: Min/km | M51: 0.005 | N51: 5 | O51: 6.25 | P51: 7 | Q51: 3.125 | R51: 1000 | S51: 1250 | T51: 1400 | U51: =S47 -> 625 | V51: =VLOOKUP(F51,AGE!F:J,4,FALSE) -> 2011 | W51: =VLOOKUP(F51,AGE!F:J,5,FALSE) -> 2008 | Y51: 0
A52: 20 | B52: 20 | C52: 4 | D52: 20204 | E52: Cross Triathlon | F52: Jeune 8-11 | G52: Total | H52: =SUM(H49:H51) -> 3100 | I52: =SUM(I49:I51) -> 3410 | J52: =SUM(J49:J51) -> 2790 | N52: =SUM(N49:N51) -> 14.83333333 | O52: =SUM(O49:O51) -> 18.54166667 | Q52: =SUM(Q49:Q51) -> 9.270833333 | R52: =SUM(R49:R51) -> 3100 | S52: =SUM(S49:S51) -> 3875 | U52: =SUM(U49:U51) -> 1937.5 | V52: =VLOOKUP(F52,AGE!F:J,4,FALSE) -> 2011 | W52: =VLOOKUP(F52,AGE!F:J,5,FALSE) -> 2008 | Y52: 0
A53: 20 | B53: 30 | C53: 1 | D53: 20301 | E53: Cross Triathlon | F53: Jeune 10-13 | G53: Natation | H53: 200 | I53: =H53*1.1 -> 220 | J53: =H53*0.9 -> 180 | K53: 110 | L53: Sec/100m | M53: =IF(L53="Sec/100m",((K53)/60/100),(IF(L53="Km/h",60/K53/1000,(IF(L53="Min/km",K53/1000,""))))) -> 0.01833333333 | N53: =H53*M53 -> 3.666666667 | O53: =N53*1.25 -> 4.583333333 | P53: =N53*1.4 -> 5.133333333 | Q53: =O49 -> 2.291666667 | R53: =N53/M53 -> 200 | S53: =O53/M53 -> 250 | T53: =P53/M53 -> 280 | U53: =S49 -> 125 | V53: =VLOOKUP(F53,AGE!F:J,4,FALSE) -> 2009 | W53: =VLOOKUP(F53,AGE!F:J,5,FALSE) -> 2006 | Y53: 0
A54: 20 | B54: 30 | C54: 2 | D54: 20302 | E54: Cross Triathlon | F54: Jeune 10-13 | G54: Cyclisme | H54: 4000 | I54: =H54*1.1 -> 4400 | J54: =H54*0.9 -> 3600 | K54: 15 | L54: Km/h | M54: =IF(L54="Sec/100m",((K54)/60/100),(IF(L54="Km/h",60/K54/1000,(IF(L54="Min/km",K54/1000,""))))) -> 0.004 | N54: =H54*M54 -> 16 | O54: =N54*1.25 -> 20 | P54: =N54*1.4 -> 22.4 | Q54: =O50 -> 10 | R54: =N54/M54 -> 4000 | S54: =O54/M54 -> 5000 | T54: =P54/M54 -> 5600 | U54: =S50 -> 2500 | V54: =VLOOKUP(F54,AGE!F:J,4,FALSE) -> 2009 | W54: =VLOOKUP(F54,AGE!F:J,5,FALSE) -> 2006 | Y54: 0
A55: 20 | B55: 30 | C55: 3 | D55: 20303 | E55: Cross Triathlon | F55: Jeune 10-13 | G55: Course à pied | H55: 1500 | I55: 1650 | J55: 1350 | K55: 5 | L55: Min/km | M55: 0.005 | N55: 7.5 | O55: 9.375 | P55: 10.5 | Q55: 6.25 | R55: 1500 | S55: 1875 | T55: 2100 | U55: =S51 -> 1250 | V55: =VLOOKUP(F55,AGE!F:J,4,FALSE) -> 2009 | W55: =VLOOKUP(F55,AGE!F:J,5,FALSE) -> 2006 | Y55: 0
A56: 20 | B56: 30 | C56: 4 | D56: 20304 | E56: Cross Triathlon | F56: Jeune 10-13 | G56: Total | H56: =SUM(H53:H55) -> 5700 | I56: =SUM(I53:I55) -> 6270 | J56: =SUM(J53:J55) -> 5130 | N56: =SUM(N53:N55) -> 27.16666667 | O56: =SUM(O53:O55) -> 33.95833333 | Q56: =SUM(Q53:Q55) -> 18.54166667 | R56: =SUM(R53:R55) -> 5700 | S56: =SUM(S53:S55) -> 7125 | U56: =SUM(U53:U55) -> 3875 | V56: =VLOOKUP(F56,AGE!F:J,4,FALSE) -> 2009 | W56: =VLOOKUP(F56,AGE!F:J,5,FALSE) -> 2006 | Y56: 0
A57: 20 | B57: 40 | C57: 1 | D57: 20401 | E57: Cross Triathlon | F57: Jeune 12-19 | G57: Natation | H57: 300 | I57: =H57*1.1 -> 330 | J57: =H57*0.9 -> 270 | K57: 110 | L57: Sec/100m | M57: =IF(L57="Sec/100m",((K57)/60/100),(IF(L57="Km/h",60/K57/1000,(IF(L57="Min/km",K57/1000,""))))) -> 0.01833333333 | N57: =H57*M57 -> 5.5 | O57: =N57*1.25 -> 6.875 | P57: =N57*1.4 -> 7.7 | Q57: =O53 -> 4.583333333 | R57: =N57/M57 -> 300 | S57: =O57/M57 -> 375 | T57: =P57/M57 -> 420 | U57: =S53 -> 250 | V57: =VLOOKUP(F57,AGE!F:J,4,FALSE) -> 2007 | W57: =VLOOKUP(F57,AGE!F:J,5,FALSE) -> 2000 | Y57: 0
A58: 20 | B58: 40 | C58: 2 | D58: 20402 | E58: Cross Triathlon | F58: Jeune 12-19 | G58: Cyclisme | H58: 6000 | I58: =H58*1.1 -> 6600 | J58: =H58*0.9 -> 5400 | K58: 15 | L58: Km/h | M58: =IF(L58="Sec/100m",((K58)/60/100),(IF(L58="Km/h",60/K58/1000,(IF(L58="Min/km",K58/1000,""))))) -> 0.004 | N58: =H58*M58 -> 24 | O58: =N58*1.25 -> 30 | P58: =N58*1.4 -> 33.6 | Q58: =O54 -> 20 | R58: =N58/M58 -> 6000 | S58: =O58/M58 -> 7500 | T58: =P58/M58 -> 8400 | U58: =S54 -> 5000 | V58: =VLOOKUP(F58,AGE!F:J,4,FALSE) -> 2007 | W58: =VLOOKUP(F58,AGE!F:J,5,FALSE) -> 2000 | Y58: 0
A59: 20 | B59: 40 | C59: 3 | D59: 20403 | E59: Cross Triathlon | F59: Jeune 12-19 | G59: Course à pied | H59: 2000 | I59: 2200 | J59: 1800 | K59: 5 | L59: Min/km | M59: 0.005 | N59: 10 | O59: 12.5 | P59: 14 | Q59: 9.375 | R59: 2000 | S59: 2500 | T59: 2800 | U59: =S55 -> 1875 | V59: =VLOOKUP(F59,AGE!F:J,4,FALSE) -> 2007 | W59: =VLOOKUP(F59,AGE!F:J,5,FALSE) -> 2000 | Y59: 0
A60: 20 | B60: 40 | C60: 4 | D60: 20404 | E60: Cross Triathlon | F60: Jeune 12-19 | G60: Total | H60: =SUM(H57:H59) -> 8300 | I60: =SUM(I57:I59) -> 9130 | J60: =SUM(J57:J59) -> 7470 | N60: =SUM(N57:N59) -> 39.5 | O60: =SUM(O57:O59) -> 49.375 | Q60: =SUM(Q57:Q59) -> 33.95833333 | R60: =SUM(R57:R59) -> 8300 | S60: =SUM(S57:S59) -> 10375 | U60: =SUM(U57:U59) -> 7125 | V60: =VLOOKUP(F60,AGE!F:J,4,FALSE) -> 2007 | W60: =VLOOKUP(F60,AGE!F:J,5,FALSE) -> 2000 | Y60: 0
A61: 20 | B61: 50 | C61: 1 | D61: 20501 | E61: Cross Triathlon | F61: Distance XS | G61: Natation | H61: 250 | I61: =H61*1.1 -> 275 | J61: =H61*0.9 -> 225 | K61: 105 | L61: Sec/100m | M61: =IF(L61="Sec/100m",((K61)/60/100),(IF(L61="Km/h",60/K61/1000,(IF(L61="Min/km",K61/1000,""))))) -> 0.0175 | N61: =H61*M61 -> 4.375 | O61: =N61*1.25 -> 5.46875 | P61: =N61*1.4 -> 6.125 | Q61: =O57 -> 6.875 | R61: =N61/M61 -> 250 | S61: =O61/M61 -> 312.5 | T61: =P61/M61 -> 350 | U61: =(N61*0.5)/M61 -> 125 | V61: =VLOOKUP(F61,AGE!F:J,4,FALSE) -> 2007 | W61: =VLOOKUP(F61,AGE!F:J,5,FALSE) -> 1920 | Y61: 0
A62: 20 | B62: 50 | C62: 2 | D62: 20502 | E62: Cross Triathlon | F62: Distance XS | G62: Cyclisme | H62: 5500 | I62: =H62*1.1 -> 6050 | J62: =H62*0.9 -> 4950 | K62: 15 | L62: Km/h | M62: =IF(L62="Sec/100m",((K62)/60/100),(IF(L62="Km/h",60/K62/1000,(IF(L62="Min/km",K62/1000,""))))) -> 0.004 | N62: =H62*M62 -> 22 | O62: =N62*1.25 -> 27.5 | P62: 30.8 | Q62: =O58 -> 30 | R62: =N62/M62 -> 5500 | S62: =O62/M62 -> 6875 | T62: =P62/M62 -> 7700 | U62: 2750 | V62: =VLOOKUP(F62,AGE!F:J,4,FALSE) -> 2007 | W62: =VLOOKUP(F62,AGE!F:J,5,FALSE) -> 1920 | Y62: 0
A63: 20 | B63: 50 | C63: 3 | D63: 20503 | E63: Cross Triathlon | F63: Distance XS | G63: Course à pied | H63: 2000 | I63: 2200 | J63: 1800 | K63: 4.5 | L63: Min/km | M63: 0.0045 | N63: 9 | O63: 11.25 | P63: 12.6 | Q63: 12.5 | R63: 2000 | S63: 2500 | T63: 2800 | U63: 1000 | V63: =VLOOKUP(F63,AGE!F:J,4,FALSE) -> 2007 | W63: =VLOOKUP(F63,AGE!F:J,5,FALSE) -> 1920 | Y63: 0
A64: 20 | B64: 50 | C64: 4 | D64: 20504 | E64: Cross Triathlon | F64: Distance XS | G64: Total | H64: =SUM(H61:H63) -> 7750 | I64: =SUM(I61:I63) -> 8525 | J64: =SUM(J61:J63) -> 6975 | N64: =SUM(N61:N63) -> 35.375 | O64: =SUM(O61:O63) -> 44.21875 | Q64: =SUM(Q61:Q63) -> 49.375 | R64: =SUM(R61:R63) -> 7750 | S64: =SUM(S61:S63) -> 9687.5 | U64: =SUM(U61:U63) -> 3875 | V64: =VLOOKUP(F64,AGE!F:J,4,FALSE) -> 2007 | W64: =VLOOKUP(F64,AGE!F:J,5,FALSE) -> 1920 | Y64: 0
A65: 20 | B65: 60 | C65: 1 | D65: 20601 | E65: Cross Triathlon | F65: Distance S | G65: Natation | H65: 500 | I65: =H65*1.1 -> 550 | J65: =H65*0.9 -> 450 | K65: 105 | L65: Sec/100m | M65: =IF(L65="Sec/100m",((K65)/60/100),(IF(L65="Km/h",60/K65/1000,(IF(L65="Min/km",K65/1000,""))))) -> 0.0175 | N65: =H65*M65 -> 8.75 | O65: =N65*1.25 -> 10.9375 | P65: =N65*1.4 -> 12.25 | Q65: =O61 -> 5.46875 | R65: =N65/M65 -> 500 | S65: =O65/M65 -> 625 | T65: =P65/M65 -> 700 | U65: =S61 -> 312.5 | V65: =VLOOKUP(F65,AGE!F:J,4,FALSE) -> 2003 | W65: =VLOOKUP(F65,AGE!F:J,5,FALSE) -> 1920 | Y65: 0
A66: 20 | B66: 60 | C66: 2 | D66: 20602 | E66: Cross Triathlon | F66: Distance S | G66: Cyclisme | H66: 11000 | I66: =H66*1.1 -> 12100 | J66: =H66*0.9 -> 9900 | K66: 15 | L66: Km/h | M66: =IF(L66="Sec/100m",((K66)/60/100),(IF(L66="Km/h",60/K66/1000,(IF(L66="Min/km",K66/1000,""))))) -> 0.004 | N66: =H66*M66 -> 44 | O66: =N66*1.25 -> 55 | P66: 61.6 | Q66: =O62 -> 27.5 | R66: =N66/M66 -> 11000 | S66: =O66/M66 -> 13750 | T66: =P66/M66 -> 15400 | U66: =S62 -> 6875 | V66: =VLOOKUP(F66,AGE!F:J,4,FALSE) -> 2003 | W66: =VLOOKUP(F66,AGE!F:J,5,FALSE) -> 1920 | Y66: 0
A67: 20 | B67: 60 | C67: 3 | D67: 20603 | E67: Cross Triathlon | F67: Distance S | G67: Course à pied | H67: 4000 | I67: 4400 | J67: 3600 | K67: 4.5 | L67: Min/km | M67: 0.0045 | N67: 18 | O67: 22.5 | P67: 25.2 | Q67: 11.25 | R67: 4000 | S67: 5000 | T67: 5600 | U67: =S63 -> 2500 | V67: =VLOOKUP(F67,AGE!F:J,4,FALSE) -> 2003 | W67: =VLOOKUP(F67,AGE!F:J,5,FALSE) -> 1920 | Y67: 0
A68: 20 | B68: 60 | C68: 4 | D68: 20604 | E68: Cross Triathlon | F68: Distance S | G68: Total | H68: =SUM(H65:H67) -> 15500 | I68: =SUM(I65:I67) -> 17050 | J68: =SUM(J65:J67) -> 13950 | N68: =SUM(N65:N67) -> 70.75 | O68: =SUM(O65:O67) -> 88.4375 | Q68: =SUM(Q65:Q67) -> 44.21875 | R68: =SUM(R65:R67) -> 15500 | S68: =SUM(S65:S67) -> 19375 | U68: =SUM(U65:U67) -> 9687.5 | V68: =VLOOKUP(F68,AGE!F:J,4,FALSE) -> 2003 | W68: =VLOOKUP(F68,AGE!F:J,5,FALSE) -> 1920 | Y68: 0
A69: 20 | B69: 70 | C69: 1 | D69: 20701 | E69: Cross Triathlon | F69: Distance M | G69: Natation | H69: 1000 | I69: =H69*1.1 -> 1100 | J69: =H69*0.9 -> 900 | K69: 105 | L69: Sec/100m | M69: =IF(L69="Sec/100m",((K69)/60/100),(IF(L69="Km/h",60/K69/1000,(IF(L69="Min/km",K69/1000,""))))) -> 0.0175 | N69: =H69*M69 -> 17.5 | O69: =N69*1.25 -> 21.875 | P69: =N69*1.4 -> 24.5 | Q69: =O65 -> 10.9375 | R69: =N69/M69 -> 1000 | S69: =O69/M69 -> 1250 | T69: =P69/M69 -> 1400 | U69: =S65 -> 625 | V69: =VLOOKUP(F69,AGE!F:J,4,FALSE) -> 2001 | W69: =VLOOKUP(F69,AGE!F:J,5,FALSE) -> 1920 | Y69: =IF(U69>R69,"Attention dist basse assimilée > distance officielle",) -> 0
A70: 20 | B70: 70 | C70: 2 | D70: =CONCATENATE(A70,B70,C70) -> 20702 | E70: Cross Triathlon | F70: Distance M | G70: Cyclisme | H70: 22000 | I70: =H70*1.1 -> 24200 | J70: =H70*0.9 -> 19800 | K70: 15 | L70: Km/h | M70: =IF(L70="Sec/100m",((K70)/60/100),(IF(L70="Km/h",60/K70/1000,(IF(L70="Min/km",K70/1000,""))))) -> 0.004 | N70: =H70*M70 -> 88 | O70: =N70*1.25 -> 110 | P70: 123.2 | Q70: =O66 -> 55 | R70: =N70/M70 -> 22000 | S70: =O70/M70 -> 27500 | T70: =P70/M70 -> 30800 | U70: =S66 -> 13750 | V70: =VLOOKUP(F70,AGE!F:J,4,FALSE) -> 2001 | W70: =VLOOKUP(F70,AGE!F:J,5,FALSE) -> 1920 | Y70: 0
A71: 20 | B71: 70 | C71: 3 | D71: 20703 | E71: Cross Triathlon | F71: Distance M | G71: Course à pied | H71: 8000 | I71: 8800 | J71: 7200 | K71: 4.5 | L71: Min/km | M71: 0.0045 | N71: 36 | O71: 45 | P71: 50.4 | Q71: 22.5 | R71: 8000 | S71: 10000 | T71: 11200 | U71: =S67 -> 5000 | V71: =VLOOKUP(F71,AGE!F:J,4,FALSE) -> 2001 | W71: =VLOOKUP(F71,AGE!F:J,5,FALSE) -> 1920 | Y71: 0
A72: 20 | B72: 70 | C72: 4 | D72: 20704 | E72: Cross Triathlon | F72: Distance M | G72: Total | H72: =SUM(H69:H71) -> 31000 | I72: =SUM(I69:I71) -> 34100 | J72: =SUM(J69:J71) -> 27900 | N72: =SUM(N69:N71) -> 141.5 | O72: =SUM(O69:O71) -> 176.875 | Q72: =SUM(Q69:Q71) -> 88.4375 | R72: =SUM(R69:R71) -> 31000 | S72: =SUM(S69:S71) -> 38750 | U72: =SUM(U69:U71) -> 19375 | V72: =VLOOKUP(F72,AGE!F:J,4,FALSE) -> 2001 | W72: =VLOOKUP(F72,AGE!F:J,5,FALSE) -> 1920 | Y72: 0
A73: 20 | B73: 80 | C73: 1 | D73: 20801 | E73: Cross Triathlon | F73: Distance L | G73: Natation | H73: 2000 | I73: =H73*1.1 -> 2200 | J73: =H73*0.9 -> 1800 | K73: 105 | L73: Sec/100m | M73: =IF(L73="Sec/100m",((K73)/60/100),(IF(L73="Km/h",60/K73/1000,(IF(L73="Min/km",K73/1000,""))))) -> 0.0175 | N73: =H73*M73 -> 35 | O73: =N73*1.25 -> 43.75 | Q73: =O69 -> 21.875 | R73: =N73/M73 -> 2000 | S73: =O73/M73 -> 2500 | T73: =P73/M73 -> 0 | U73: =(N73*0.75)/M73 -> 1500 | V73: =VLOOKUP(F73,AGE!F:J,4,FALSE) -> 2001 | W73: =VLOOKUP(F73,AGE!F:J,5,FALSE) -> 1920 | Y73: 0
A74: 20 | B74: 80 | C74: 2 | D74: 20802 | E74: Cross Triathlon | F74: Distance L | G74: Cyclisme | H74: 44000 | I74: =H74*1.1 -> 48400 | J74: =H74*0.9 -> 39600 | K74: 15 | L74: Km/h | M74: =IF(L74="Sec/100m",((K74)/60/100),(IF(L74="Km/h",60/K74/1000,(IF(L74="Min/km",K74/1000,""))))) -> 0.004 | N74: =H74*M74 -> 176 | O74: =N74*1.25 -> 220 | Q74: =O70 -> 110 | R74: =N74/M74 -> 44000 | S74: =O74/M74 -> 55000 | T74: =P74/M74 -> 0 | U74: =(N74*0.75)/M74 -> 33000 | V74: =VLOOKUP(F74,AGE!F:J,4,FALSE) -> 2001 | W74: =VLOOKUP(F74,AGE!F:J,5,FALSE) -> 1920 | Y74: 0
A75: 20 | B75: 80 | C75: 3 | D75: 20803 | E75: Cross Triathlon | F75: Distance L | G75: Course à pied | H75: 16000 | I75: 17600 | J75: 14400 | K75: 4.5 | L75: Min/km | M75: 0.0045 | N75: 72 | O75: 90 | Q75: 45 | R75: 16000 | S75: 20000 | T75: 0 | U75: 12000 | V75: =VLOOKUP(F75,AGE!F:J,4,FALSE) -> 2001 | W75: =VLOOKUP(F75,AGE!F:J,5,FALSE) -> 1920 | Y75: 0
A76: 20 | B76: 80 | C76: 4 | D76: 20804 | E76: Cross Triathlon | F76: Distance L | G76: Total | H76: =SUM(H73:H75) -> 62000 | I76: =SUM(I73:I75) -> 68200 | J76: =SUM(J73:J75) -> 55800 | N76: =SUM(N73:N75) -> 283 | O76: =SUM(O73:O75) -> 353.75 | Q76: =SUM(Q73:Q75) -> 176.875 | R76: =SUM(R73:R75) -> 62000 | S76: =SUM(S73:S75) -> 77500 | U76: =SUM(U73:U75) -> 46500 | V76: =VLOOKUP(F76,AGE!F:J,4,FALSE) -> 2001 | W76: =VLOOKUP(F76,AGE!F:J,5,FALSE) -> 1920 | Y76: 0
A77: 20 | B77: 90 | C77: 1 | D77: 20901 | E77: Cross Triathlon | F77: Distance XL | G77: Natation | H77: 3000 | I77: =H77*1.1 -> 3300 | J77: =H77*0.9 -> 2700 | K77: 105 | L77: Sec/100m | M77: =IF(L77="Sec/100m",((K77)/60/100),(IF(L77="Km/h",60/K77/1000,(IF(L77="Min/km",K77/1000,""))))) -> 0.0175 | N77: =H77*M77 -> 52.5 | O77: =N77*1.25 -> 65.625 | Q77: =O73 -> 43.75 | R77: =N77/M77 -> 3000 | S77: =O77/M77 -> 3750 | T77: =P77/M77 -> 0 | U77: =(N77*0.75)/M77 -> 2250 | V77: =VLOOKUP(F77,AGE!F:J,4,FALSE) -> 2001 | W77: =VLOOKUP(F77,AGE!F:J,5,FALSE) -> 1920 | Y77: 0
A78: 20 | B78: 90 | C78: 2 | D78: 20902 | E78: Cross Triathlon | F78: Distance XL | G78: Cyclisme | H78: 66000 | I78: =H78*1.1 -> 72600 | J78: =H78*0.9 -> 59400 | K78: 15 | L78: Km/h | M78: =IF(L78="Sec/100m",((K78)/60/100),(IF(L78="Km/h",60/K78/1000,(IF(L78="Min/km",K78/1000,""))))) -> 0.004 | N78: =H78*M78 -> 264 | O78: =N78*1.25 -> 330 | Q78: =O74 -> 220 | R78: =N78/M78 -> 66000 | S78: =O78/M78 -> 82500 | T78: =P78/M78 -> 0 | U78: =(N78*0.75)/M78 -> 49500 | V78: =VLOOKUP(F78,AGE!F:J,4,FALSE) -> 2001 | W78: =VLOOKUP(F78,AGE!F:J,5,FALSE) -> 1920 | Y78: 0
A79: 20 | B79: 90 | C79: 3 | D79: 20903 | E79: Cross Triathlon | F79: Distance XL | G79: Course à pied | H79: 24000 | I79: 26400 | J79: 21600 | K79: 4.5 | L79: Min/km | M79: 0.0045 | N79: 108 | O79: 135 | Q79: 90 | R79: 24000 | S79: 30000 | T79: 0 | U79: 18000 | V79: =VLOOKUP(F79,AGE!F:J,4,FALSE) -> 2001 | W79: =VLOOKUP(F79,AGE!F:J,5,FALSE) -> 1920 | Y79: 0
A80: 20 | B80: 90 | C80: 4 | D80: 20904 | E80: Cross Triathlon | F80: Distance XL | G80: Total | H80: =SUM(H77:H79) -> 93000 | I80: =SUM(I77:I79) -> 102300 | J80: =SUM(J77:J79) -> 83700 | N80: =SUM(N77:N79) -> 424.5 | O80: =SUM(O77:O79) -> 530.625 | Q80: =SUM(Q77:Q79) -> 353.75 | R80: =SUM(R77:R79) -> 93000 | S80: =SUM(S77:S79) -> 116250 | U80: =SUM(U77:U79) -> 69750 | V80: =VLOOKUP(F80,AGE!F:J,4,FALSE) -> 2001 | W80: =VLOOKUP(F80,AGE!F:J,5,FALSE) -> 1920 | Y80: 0
A81: 30 | B81: 10 | C81: 1 | D81: 30101 | E81: Duathlon | F81: Jeune 6-9 | G81: Course à pied | H81: 250 | I81: =H81*1.1 -> 275 | J81: =H81*0.9 -> 225 | K81: 5 | L81: Min/km | M81: =IF(L81="Sec/100m",((K81)/60/100),(IF(L81="Km/h",60/K81/1000,(IF(L81="Min/km",K81/1000,""))))) -> 0.005 | N81: =H81*M81 -> 1.25 | O81: =N81*1.25 -> 1.5625 | P81: =N81*1.4 -> 1.75 | Q81: =O77 -> 65.625 | R81: =N81/M81 -> 250 | S81: =O81/M81 -> 312.5 | T81: =P81/M81 -> 350 | U81: =+R81/2 -> 125 | V81: =VLOOKUP(F81,AGE!F:J,4,FALSE) -> 2013 | W81: =VLOOKUP(F81,AGE!F:J,5,FALSE) -> 2010 | Y81: 0
A82: 30 | B82: 10 | C82: 2 | D82: 30102 | E82: Duathlon | F82: Jeune 6-9 | G82: Cyclisme | H82: 1000 | I82: =H82*1.1 -> 1100 | J82: =H82*0.9 -> 900 | K82: 15 | L82: Km/h | M82: 0.004 | N82: =H82*M82 -> 4 | O82: =N82*1.25 -> 5 | P82: =N82*1.4 -> 5.6 | Q82: =O78 -> 330 | R82: =N82/M82 -> 1000 | S82: =O82/M82 -> 1250 | T82: =P82/M82 -> 1400 | U82: =+R82/2 -> 500 | V82: =VLOOKUP(F82,AGE!F:J,4,FALSE) -> 2013 | W82: =VLOOKUP(F82,AGE!F:J,5,FALSE) -> 2010 | Y82: 0
A83: 30 | B83: 10 | C83: 3 | D83: 30103 | E83: Duathlon | F83: Jeune 6-9 | G83: Course à pied | H83: 250 | I83: 275 | J83: 225 | K83: 5 | L83: Min/km | M83: 0.005 | N83: 1.25 | O83: 1.5625 | P83: 1.75 | Q83: 135 | R83: 250 | S83: 312.5 | T83: 350 | U83: =+R83/2 -> 125 | V83: =VLOOKUP(F83,AGE!F:J,4,FALSE) -> 2013 | W83: =VLOOKUP(F83,AGE!F:J,5,FALSE) -> 2010 | Y83: 0
A84: 30 | B84: 10 | C84: 4 | D84: 30104 | E84: Duathlon | F84: Jeune 6-9 | G84: Total | H84: =SUM(H81:H83) -> 1500 | I84: =SUM(I81:I83) -> 1650 | J84: =SUM(J81:J83) -> 1350 | N84: =SUM(N81:N83) -> 6.5 | O84: =SUM(O81:O83) -> 8.125 | Q84: =SUM(Q81:Q83) -> 530.625 | R84: =SUM(R81:R83) -> 1500 | S84: =SUM(S81:S83) -> 1875 | U84: =SUM(U81:U83) -> 750 | V84: =VLOOKUP(F84,AGE!F:J,4,FALSE) -> 2013 | W84: =VLOOKUP(F84,AGE!F:J,5,FALSE) -> 2010 | Y84: 0
A85: 30 | B85: 20 | C85: 1 | D85: 30201 | E85: Duathlon | F85: Jeune 8-11 | G85: Course à pied | H85: 500 | I85: =H85*1.1 -> 550 | J85: =H85*0.9 -> 450 | K85: 5 | L85: Min/km | M85: 0.005 | N85: =H85*M85 -> 2.5 | O85: =N85*1.25 -> 3.125 | P85: =N85*1.4 -> 3.5 | Q85: =O81 -> 1.5625 | R85: =N85/M85 -> 500 | S85: =O85/M85 -> 625 | T85: =P85/M85 -> 700 | U85: =S81 -> 312.5 | V85: =VLOOKUP(F85,AGE!F:J,4,FALSE) -> 2011 | W85: =VLOOKUP(F85,AGE!F:J,5,FALSE) -> 2008 | Y85: 0
A86: 30 | B86: 20 | C86: 2 | D86: 30202 | E86: Duathlon | F86: Jeune 8-11 | G86: Cyclisme | H86: 2000 | I86: =H86*1.1 -> 2200 | J86: =H86*0.9 -> 1800 | K86: 15 | L86: Km/h | M86: 0.004 | N86: =H86*M86 -> 8 | O86: =N86*1.25 -> 10 | P86: =N86*1.4 -> 11.2 | Q86: =O82 -> 5 | R86: =N86/M86 -> 2000 | S86: =O86/M86 -> 2500 | T86: =P86/M86 -> 2800 | U86: =S82 -> 1250 | V86: =VLOOKUP(F86,AGE!F:J,4,FALSE) -> 2011 | W86: =VLOOKUP(F86,AGE!F:J,5,FALSE) -> 2008 | Y86: 0
A87: 30 | B87: 20 | C87: 3 | D87: 30203 | E87: Duathlon | F87: Jeune 8-11 | G87: Course à pied | H87: 500 | I87: 550 | J87: 450 | K87: 5 | L87: Min/km | M87: 0.005 | N87: 2.5 | O87: 3.125 | P87: 3.5 | Q87: 1.5625 | R87: 500 | S87: 625 | T87: 700 | U87: =S83 -> 312.5 | V87: =VLOOKUP(F87,AGE!F:J,4,FALSE) -> 2011 | W87: =VLOOKUP(F87,AGE!F:J,5,FALSE) -> 2008 | Y87: 0
A88: 30 | B88: 20 | C88: 4 | D88: 30204 | E88: Duathlon | F88: Jeune 8-11 | G88: Total | H88: =SUM(H85:H87) -> 3000 | I88: =SUM(I85:I87) -> 3300 | J88: =SUM(J85:J87) -> 2700 | N88: =SUM(N85:N87) -> 13 | O88: =SUM(O85:O87) -> 16.25 | Q88: =SUM(Q85:Q87) -> 8.125 | R88: =SUM(R85:R87) -> 3000 | S88: =SUM(S85:S87) -> 3750 | U88: =SUM(U85:U87) -> 1875 | V88: =VLOOKUP(F88,AGE!F:J,4,FALSE) -> 2011 | W88: =VLOOKUP(F88,AGE!F:J,5,FALSE) -> 2008 | Y88: 0
A89: 30 | B89: 30 | C89: 1 | D89: 30301 | E89: Duathlon | F89: Jeune 10-13 | G89: Course à pied | H89: 750 | I89: =H89*1.1 -> 825 | J89: =H89*0.9 -> 675 | K89: 5 | L89: Min/km | M89: 0.005 | N89: =H89*M89 -> 3.75 | O89: =N89*1.25 -> 4.6875 | P89: =N89*1.4 -> 5.25 | Q89: =O85 -> 3.125 | R89: =N89/M89 -> 750 | S89: =O89/M89 -> 937.5 | T89: =P89/M89 -> 1050 | U89: =S85 -> 625 | V89: =VLOOKUP(F89,AGE!F:J,4,FALSE) -> 2009 | W89: =VLOOKUP(F89,AGE!F:J,5,FALSE) -> 2006 | Y89: 0
A90: 30 | B90: 30 | C90: 2 | D90: 30302 | E90: Duathlon | F90: Jeune 10-13 | G90: Cyclisme | H90: 5000 | I90: =H90*1.1 -> 5500 | J90: =H90*0.9 -> 4500 | K90: 15 | L90: Km/h | M90: 0.004 | N90: =H90*M90 -> 20 | O90: =N90*1.25 -> 25 | P90: =N90*1.4 -> 28 | Q90: =O86 -> 10 | R90: =N90/M90 -> 5000 | S90: =O90/M90 -> 6250 | T90: =P90/M90 -> 7000 | U90: =S86 -> 2500 | V90: =VLOOKUP(F90,AGE!F:J,4,FALSE) -> 2009 | W90: =VLOOKUP(F90,AGE!F:J,5,FALSE) -> 2006 | Y90: 0
A91: 30 | B91: 30 | C91: 3 | D91: 30303 | E91: Duathlon | F91: Jeune 10-13 | G91: Course à pied | H91: 750 | I91: 825 | J91: 675 | K91: 5 | L91: Min/km | M91: 0.005 | N91: 3.75 | O91: 4.6875 | P91: 5.25 | Q91: 3.125 | R91: 750 | S91: 937.5 | T91: 1050 | U91: =S87 -> 625 | V91: =VLOOKUP(F91,AGE!F:J,4,FALSE) -> 2009 | W91: =VLOOKUP(F91,AGE!F:J,5,FALSE) -> 2006 | Y91: 0
A92: 30 | B92: 30 | C92: 4 | D92: 30304 | E92: Duathlon | F92: Jeune 10-13 | G92: Total | H92: =SUM(H89:H91) -> 6500 | I92: =SUM(I89:I91) -> 7150 | J92: =SUM(J89:J91) -> 5850 | N92: =SUM(N89:N91) -> 27.5 | O92: =SUM(O89:O91) -> 34.375 | Q92: =SUM(Q89:Q91) -> 16.25 | R92: =SUM(R89:R91) -> 6500 | S92: =SUM(S89:S91) -> 8125 | U92: =SUM(U89:U91) -> 3750 | V92: =VLOOKUP(F92,AGE!F:J,4,FALSE) -> 2009 | W92: =VLOOKUP(F92,AGE!F:J,5,FALSE) -> 2006 | Y92: 0
A93: 30 | B93: 40 | C93: 1 | D93: 30401 | E93: Duathlon | F93: Jeune 12-19 | G93: Course à pied | H93: 1000 | I93: =H93*1.1 -> 1100 | J93: =H93*0.9 -> 900 | K93: 5 | L93: Min/km | M93: =IF(L93="Sec/100m",((K93)/60/100),(IF(L93="Km/h",60/K93/1000,(IF(L93="Min/km",K93/1000,""))))) -> 0.005 | N93: =H93*M93 -> 5 | O93: =N93*1.25 -> 6.25 | P93: =N93*1.4 -> 7 | Q93: =O89 -> 4.6875 | R93: =N93/M93 -> 1000 | S93: =O93/M93 -> 1250 | T93: =P93/M93 -> 1400 | U93: =S89 -> 937.5 | V93: =VLOOKUP(F93,AGE!F:J,4,FALSE) -> 2007 | W93: =VLOOKUP(F93,AGE!F:J,5,FALSE) -> 2000 | Y93: 0
A94: 30 | B94: 40 | C94: 2 | D94: 30402 | E94: Duathlon | F94: Jeune 12-19 | G94: Cyclisme | H94: 6000 | I94: =H94*1.1 -> 6600 | J94: =H94*0.9 -> 5400 | K94: 15 | L94: Km/h | M94: 0.004 | N94: =H94*M94 -> 24 | O94: =N94*1.25 -> 30 | P94: =N94*1.4 -> 33.6 | Q94: =O90 -> 25 | R94: =N94/M94 -> 6000 | S94: =O94/M94 -> 7500 | T94: =P94/M94 -> 8400 | U94: 5500 | V94: =VLOOKUP(F94,AGE!F:J,4,FALSE) -> 2007 | W94: =VLOOKUP(F94,AGE!F:J,5,FALSE) -> 2000 | Y94: =IF(U94>R94,"Attention dist basse assimilée > distance officielle",) -> 0
A95: 30 | B95: 40 | C95: 3 | D95: 30403 | E95: Duathlon | F95: Jeune 12-19 | G95: Course à pied | H95: 1000 | I95: 1100 | J95: 900 | K95: 5 | L95: Min/km | M95: =IF(L95="Sec/100m",((K95)/60/100),(IF(L95="Km/h",60/K95/1000,(IF(L95="Min/km",K95/1000,""))))) -> 0.005 | N95: 5 | O95: 6.25 | P95: 7 | Q95: 4.6875 | R95: 1000 | S95: 1250 | T95: 1400 | U95: =S91 -> 937.5 | V95: =VLOOKUP(F95,AGE!F:J,4,FALSE) -> 2007 | W95: =VLOOKUP(F95,AGE!F:J,5,FALSE) -> 2000 | Y95: =IF(U95>R95,"Attention dist basse assimilée > distance officielle",) -> 0
A96: 30 | B96: 40 | C96: 4 | D96: 30404 | E96: Duathlon | F96: Jeune 12-19 | G96: Total | H96: =SUM(H93:H95) -> 8000 | I96: =SUM(I93:I95) -> 8800 | J96: =SUM(J93:J95) -> 7200 | N96: =SUM(N93:N95) -> 34 | O96: =SUM(O93:O95) -> 42.5 | Q96: =SUM(Q93:Q95) -> 34.375 | R96: =SUM(R93:R95) -> 8000 | S96: =SUM(S93:S95) -> 10000 | U96: =SUM(U93:U95) -> 7375 | V96: =VLOOKUP(F96,AGE!F:J,4,FALSE) -> 2007 | W96: =VLOOKUP(F96,AGE!F:J,5,FALSE) -> 2000 | Y96: 0
A97: 30 | B97: 50 | C97: 1 | D97: 30501 | E97: Duathlon | F97: Distance XS | G97: Course à pied | H97: 2500 | I97: =H97*1.1 -> 2750 | J97: =H97*0.9 -> 2250 | K97: 4.5 | L97: Min/km | M97: =IF(L97="Sec/100m",((K97)/60/100),(IF(L97="Km/h",60/K97/1000,(IF(L97="Min/km",K97/1000,""))))) -> 0.0045 | N97: =H97*M97 -> 11.25 | O97: =N97*1.25 -> 14.0625 | P97: =N97*1.4 -> 15.75 | Q97: =O93 -> 6.25 | R97: =N97/M97 -> 2500 | S97: =O97/M97 -> 3125 | T97: =P97/M97 -> 3500 | U97: =(N97*0.5)/M97 -> 1250 | V97: =VLOOKUP(F97,AGE!F:J,4,FALSE) -> 2007 | W97: =VLOOKUP(F97,AGE!F:J,5,FALSE) -> 1920 | Y97: 0
A98: 30 | B98: 50 | C98: 2 | D98: 30502 | E98: Duathlon | F98: Distance XS | G98: Cyclisme | H98: 10000 | I98: =H98*1.1 -> 11000 | J98: =H98*0.9 -> 9000 | K98: 15 | L98: Km/h | M98: 0.004 | N98: =H98*M98 -> 40 | O98: =N98*1.25 -> 50 | P98: 56 | Q98: =O94 -> 30 | R98: =N98/M98 -> 10000 | S98: =O98/M98 -> 12500 | T98: =P98/M98 -> 14000 | U98: =(N98*0.5)/M98 -> 5000 | V98: =VLOOKUP(F98,AGE!F:J,4,FALSE) -> 2007 | W98: =VLOOKUP(F98,AGE!F:J,5,FALSE) -> 1920 | Y98: 0
A99: 30 | B99: 50 | C99: 3 | D99: 30503 | E99: Duathlon | F99: Distance XS | G99: Course à pied | H99: 1250 | I99: 1375 | J99: 1125 | K99: 4.5 | L99: Min/km | M99: 0.0045 | N99: 5.625 | O99: 7.03125 | P99: 7.875 | Q99: 6.25 | R99: 1250 | S99: 1562.5 | T99: 1750 | U99: 625 | V99: =VLOOKUP(F99,AGE!F:J,4,FALSE) -> 2007 | W99: =VLOOKUP(F99,AGE!F:J,5,FALSE) -> 1920 | Y99: 0
A100: 30 | B100: 50 | C100: 4 | D100: 30504 | E100: Duathlon | F100: Distance XS | G100: Total | H100: =SUM(H97:H99) -> 13750 | I100: =SUM(I97:I99) -> 15125 | J100: =SUM(J97:J99) -> 12375 | N100: =SUM(N97:N99) -> 56.875 | O100: =SUM(O97:O99) -> 71.09375 | Q100: =SUM(Q97:Q99) -> 42.5 | R100: =SUM(R97:R99) -> 13750 | S100: =SUM(S97:S99) -> 17187.5 | U100: =SUM(U97:U99) -> 6875 | V100: =VLOOKUP(F100,AGE!F:J,4,FALSE) -> 2007 | W100: =VLOOKUP(F100,AGE!F:J,5,FALSE) -> 1920 | Y100: 0
A101: 30 | B101: 60 | C101: 1 | D101: 30601 | E101: Duathlon | F101: Distance S | G101: Course à pied | H101: 5000 | I101: =H101*1.1 -> 5500 | J101: =H101*0.9 -> 4500 | K101: 4.5 | L101: Min/km | M101: 0.0045 | N101: =H101*M101 -> 22.5 | O101: =N101*1.25 -> 28.125 | P101: =N101*1.4 -> 31.5 | Q101: =O97 -> 14.0625 | R101: =N101/M101 -> 5000 | S101: =O101/M101 -> 6250 | T101: =P101/M101 -> 7000 | U101: =S97 -> 3125 | V101: =VLOOKUP(F101,AGE!F:J,4,FALSE) -> 2003 | W101: =VLOOKUP(F101,AGE!F:J,5,FALSE) -> 1920 | Y101: 0
A102: 30 | B102: 60 | C102: 2 | D102: 30602 | E102: Duathlon | F102: Distance S | G102: Cyclisme | H102: 20000 | I102: =H102*1.1 -> 22000 | J102: =H102*0.9 -> 18000 | K102: 32 | L102: Km/h | M102: 0.001875 | N102: =H102*M102 -> 37.5 | O102: =N102*1.25 -> 46.875 | P102: 52.5 | Q102: =O98 -> 50 | R102: =N102/M102 -> 20000 | S102: =O102/M102 -> 25000 | T102: =P102/M102 -> 28000 | U102: =S98 -> 12500 | V102: =VLOOKUP(F102,AGE!F:J,4,FALSE) -> 2003 | W102: =VLOOKUP(F102,AGE!F:J,5,FALSE) -> 1920 | Y102: 0
A103: 30 | B103: 60 | C103: 3 | D103: 30603 | E103: Duathlon | F103: Distance S | G103: Course à pied | H103: 2500 | I103: 2750 | J103: 2250 | K103: 4.5 | L103: Min/km | M103: 0.0045 | N103: 11.25 | O103: 14.0625 | P103: 15.75 | Q103: 7.03125 | R103: 2500 | S103: 3125 | T103: 3500 | U103: =S99 -> 1562.5 | V103: =VLOOKUP(F103,AGE!F:J,4,FALSE) -> 2003 | W103: =VLOOKUP(F103,AGE!F:J,5,FALSE) -> 1920 | Y103: 0
A104: 30 | B104: 60 | C104: 4 | D104: 30604 | E104: Duathlon | F104: Distance S | G104: Total | H104: =SUM(H101:H103) -> 27500 | I104: =SUM(I101:I103) -> 30250 | J104: =SUM(J101:J103) -> 24750 | N104: =SUM(N101:N103) -> 71.25 | O104: =SUM(O101:O103) -> 89.0625 | Q104: =SUM(Q101:Q103) -> 71.09375 | R104: =SUM(R101:R103) -> 27500 | S104: =SUM(S101:S103) -> 34375 | U104: =SUM(U101:U103) -> 17187.5 | V104: =VLOOKUP(F104,AGE!F:J,4,FALSE) -> 2003 | W104: =VLOOKUP(F104,AGE!F:J,5,FALSE) -> 1920 | Y104: 0
A105: 30 | B105: 70 | C105: 1 | D105: 30701 | E105: Duathlon | F105: Distance M | G105: Course à pied | H105: 10000 | I105: =H105*1.1 -> 11000 | J105: =H105*0.9 -> 9000 | K105: 4.5 | L105: Min/km | M105: 0.0045 | N105: =H105*M105 -> 45 | O105: =N105*1.25 -> 56.25 | P105: =N105*1.4 -> 63 | Q105: =O101 -> 28.125 | R105: =N105/M105 -> 10000 | S105: =O105/M105 -> 12500 | T105: =P105/M105 -> 14000 | U105: =S101 -> 6250 | V105: =VLOOKUP(F105,AGE!F:J,4,FALSE) -> 2001 | W105: =VLOOKUP(F105,AGE!F:J,5,FALSE) -> 1920 | Y105: 0
A106: 30 | B106: 70 | C106: 2 | D106: 30702 | E106: Duathlon | F106: Distance M | G106: Cyclisme | H106: 40000 | I106: =H106*1.1 -> 44000 | J106: =H106*0.9 -> 36000 | K106: 32 | L106: Km/h | M106: 0.001875 | N106: =H106*M106 -> 75 | O106: =N106*1.25 -> 93.75 | P106: 105 | Q106: =O102 -> 46.875 | R106: =N106/M106 -> 40000 | S106: =O106/M106 -> 50000 | T106: =P106/M106 -> 56000 | U106: =S102 -> 25000 | V106: =VLOOKUP(F106,AGE!F:J,4,FALSE) -> 2001 | W106: =VLOOKUP(F106,AGE!F:J,5,FALSE) -> 1920 | Y106: 0
A107: 30 | B107: 70 | C107: 3 | D107: 30703 | E107: Duathlon | F107: Distance M | G107: Course à pied | H107: 5000 | I107: 5500 | J107: 4500 | K107: 4.5 | L107: Min/km | M107: 0.0045 | N107: 22.5 | O107: 28.125 | P107: 31.5 | Q107: 14.0625 | R107: 5000 | S107: 6250 | T107: 7000 | U107: =S103 -> 3125 | V107: =VLOOKUP(F107,AGE!F:J,4,FALSE) -> 2001 | W107: =VLOOKUP(F107,AGE!F:J,5,FALSE) -> 1920 | Y107: 0
A108: 30 | B108: 70 | C108: 4 | D108: 30704 | E108: Duathlon | F108: Distance M | G108: Total | H108: =SUM(H105:H107) -> 55000 | I108: =SUM(I105:I107) -> 60500 | J108: =SUM(J105:J107) -> 49500 | N108: =SUM(N105:N107) -> 142.5 | O108: =SUM(O105:O107) -> 178.125 | Q108: =SUM(Q105:Q107) -> 89.0625 | R108: =SUM(R105:R107) -> 55000 | S108: =SUM(S105:S107) -> 68750 | U108: =SUM(U105:U107) -> 34375 | V108: =VLOOKUP(F108,AGE!F:J,4,FALSE) -> 2001 | W108: =VLOOKUP(F108,AGE!F:J,5,FALSE) -> 1920 | Y108: 0
A109: 30 | B109: 80 | C109: 1 | D109: 30801 | E109: Duathlon | F109: Distance L | G109: Course à pied | H109: 20000 | I109: =H109*1.1 -> 22000 | J109: =H109*0.9 -> 18000 | K109: 4.5 | L109: Min/km | M109: 0.0045 | N109: =H109*M109 -> 90 | O109: =N109*1.25 -> 112.5 | Q109: =O105 -> 56.25 | R109: =N109/M109 -> 20000 | S109: =O109/M109 -> 25000 | T109: =P109/M109 -> 0 | U109: =S105 -> 12500 | V109: =VLOOKUP(F109,AGE!F:J,4,FALSE) -> 2001 | W109: =VLOOKUP(F109,AGE!F:J,5,FALSE) -> 1920 | Y109: 0
A110: 30 | B110: 80 | C110: 2 | D110: 30802 | E110: Duathlon | F110: Distance L | G110: Cyclisme | H110: 80000 | I110: =H110*1.1 -> 88000 | J110: =H110*0.9 -> 72000 | K110: 32 | L110: Km/h | M110: 0.001875 | N110: =H110*M110 -> 150 | O110: =N110*1.25 -> 187.5 | Q110: =O106 -> 93.75 | R110: =N110/M110 -> 80000 | S110: =O110/M110 -> 100000 | T110: =P110/M110 -> 0 | U110: =S106 -> 50000 | V110: =VLOOKUP(F110,AGE!F:J,4,FALSE) -> 2001 | W110: =VLOOKUP(F110,AGE!F:J,5,FALSE) -> 1920 | Y110: 0
A111: 30 | B111: 80 | C111: 3 | D111: 30803 | E111: Duathlon | F111: Distance L | G111: Course à pied | H111: 10000 | I111: 11000 | J111: 9000 | K111: 4.5 | L111: Min/km | M111: 0.0045 | N111: =H111*M111 -> 45 | O111: 56.25 | Q111: 28.125 | R111: 10000 | S111: 12500 | T111: 0 | U111: =S107 -> 6250 | V111: =VLOOKUP(F111,AGE!F:J,4,FALSE) -> 2001 | W111: =VLOOKUP(F111,AGE!F:J,5,FALSE) -> 1920 | Y111: 0
A112: 30 | B112: 80 | C112: 4 | D112: 30804 | E112: Duathlon | F112: Distance L | G112: Total | H112: =SUM(H109:H111) -> 110000 | I112: =SUM(I109:I111) -> 121000 | J112: =SUM(J109:J111) -> 99000 | N112: =SUM(N109:N111) -> 285 | O112: =SUM(O109:O111) -> 356.25 | Q112: =SUM(Q109:Q111) -> 178.125 | R112: =SUM(R109:R111) -> 110000 | S112: =SUM(S109:S111) -> 137500 | U112: =SUM(U109:U111) -> 68750 | V112: =VLOOKUP(F112,AGE!F:J,4,FALSE) -> 2001 | W112: =VLOOKUP(F112,AGE!F:J,5,FALSE) -> 1920 | Y112: 0
A113: 30 | B113: 90 | C113: 1 | D113: 30901 | E113: Duathlon | F113: Distance XL | G113: Course à pied | H113: 20000 | I113: =H113*1.1 -> 22000 | J113: =H113*0.9 -> 18000 | K113: 4.5 | L113: Min/km | M113: 0.0045 | N113: =H113*M113 -> 90 | O113: =N113*1.25 -> 112.5 | Q113: =O109 -> 112.5 | R113: =N113/M113 -> 20000 | S113: =O113/M113 -> 25000 | T113: =P113/M113 -> 0 | U113: =(N113*0.75)/M113 -> 15000 | V113: =VLOOKUP(F113,AGE!F:J,4,FALSE) -> 2001 | W113: =VLOOKUP(F113,AGE!F:J,5,FALSE) -> 1920 | Y113: 0
A114: 30 | B114: 90 | C114: 2 | D114: 30902 | E114: Duathlon | F114: Distance XL | G114: Cyclisme | H114: 120000 | I114: =H114*1.1 -> 132000 | J114: =H114*0.9 -> 108000 | K114: 32 | L114: Km/h | M114: 0.001875 | N114: =H114*M114 -> 225 | O114: =N114*1.25 -> 281.25 | Q114: =O110 -> 187.5 | R114: =N114/M114 -> 120000 | S114: =O114/M114 -> 150000 | T114: =P114/M114 -> 0 | U114: =(N114*0.75)/M114 -> 90000 | V114: =VLOOKUP(F114,AGE!F:J,4,FALSE) -> 2001 | W114: =VLOOKUP(F114,AGE!F:J,5,FALSE) -> 1920 | Y114: 0
A115: 30 | B115: 90 | C115: 3 | D115: 30903 | E115: Duathlon | F115: Distance XL | G115: Course à pied | H115: 20000 | I115: 22000 | J115: 18000 | K115: 4.5 | L115: Min/km | M115: 0.0045 | N115: 90 | O115: 112.5 | Q115: 56.25 | R115: 20000 | S115: 25000 | T115: 0 | U115: 15000 | V115: =VLOOKUP(F115,AGE!F:J,4,FALSE) -> 2001 | W115: =VLOOKUP(F115,AGE!F:J,5,FALSE) -> 1920 | Y115: 0
A116: 30 | B116: 90 | C116: 4 | D116: 30904 | E116: Duathlon | F116: Distance XL | G116: Total | H116: =SUM(H113:H115) -> 160000 | I116: =SUM(I113:I115) -> 176000 | J116: =SUM(J113:J115) -> 144000 | N116: =SUM(N113:N115) -> 405 | O116: =SUM(O113:O115) -> 506.25 | Q116: =SUM(Q113:Q115) -> 356.25 | R116: =SUM(R113:R115) -> 160000 | S116: =SUM(S113:S115) -> 200000 | U116: =SUM(U113:U115) -> 120000 | V116: =VLOOKUP(F116,AGE!F:J,4,FALSE) -> 2001 | W116: =VLOOKUP(F116,AGE!F:J,5,FALSE) -> 1920 | Y116: 0
A117: 40 | B117: 10 | C117: 1 | D117: 40101 | E117: Cross Duathlon | F117: Jeune 6-9 | G117: Course à pied | H117: 250 | I117: =H117*1.1 -> 275 | J117: =H117*0.9 -> 225 | K117: 5 | L117: Min/km | M117: 0.005 | N117: =H117*M117 -> 1.25 | O117: =N117*1.25 -> 1.5625 | P117: =N117*1.4 -> 1.75 | R117: =N117/M117 -> 250 | S117: =O117/M117 -> 312.5 | T117: =P117/M117 -> 350 | U117: =+R117/2 -> 125 | V117: =VLOOKUP(F117,AGE!F:J,4,FALSE) -> 2013 | W117: =VLOOKUP(F117,AGE!F:J,5,FALSE) -> 2010 | Y117: 0
A118: 40 | B118: 10 | C118: 2 | D118: 40102 | E118: Cross Duathlon | F118: Jeune 6-9 | G118: Vélo | H118: 1000 | I118: =H118*1.1 -> 1100 | J118: =H118*0.9 -> 900 | K118: 15 | L118: Km/h | M118: 0.004 | N118: =H118*M118 -> 4 | O118: =N118*1.25 -> 5 | P118: =N118*1.4 -> 5.6 | R118: =N118/M118 -> 1000 | S118: =O118/M118 -> 1250 | T118: =P118/M118 -> 1400 | U118: =+R118/2 -> 500 | V118: =VLOOKUP(F118,AGE!F:J,4,FALSE) -> 2013 | W118: =VLOOKUP(F118,AGE!F:J,5,FALSE) -> 2010 | Y118: 0
A119: 40 | B119: 10 | C119: 3 | D119: 40103 | E119: Cross Duathlon | F119: Jeune 6-9 | G119: Course à pied | H119: 250 | I119: 275 | J119: 225 | K119: 5 | L119: Min/km | M119: 0.005 | N119: 1.25 | O119: 1.5625 | P119: 1.75 | R119: 250 | S119: 312.5 | T119: 350 | U119: =+R119/2 -> 125 | V119: =VLOOKUP(F119,AGE!F:J,4,FALSE) -> 2013 | W119: =VLOOKUP(F119,AGE!F:J,5,FALSE) -> 2010 | Y119: 0
A120: 40 | B120: 10 | C120: 4 | D120: 40104 | E120: Cross Duathlon | F120: Jeune 6-9 | G120: Total | H120: =SUM(H117:H119) -> 1500 | I120: =SUM(I117:I119) -> 1650 | J120: =SUM(J117:J119) -> 1350 | N120: =SUM(N117:N119) -> 6.5 | O120: =SUM(O117:O119) -> 8.125 | Q120: =SUM(Q117:Q119) -> 0 | R120: =SUM(R117:R119) -> 1500 | S120: =SUM(S117:S119) -> 1875 | U120: =SUM(U117:U119) -> 750 | V120: =VLOOKUP(F120,AGE!F:J,4,FALSE) -> 2013 | W120: =VLOOKUP(F120,AGE!F:J,5,FALSE) -> 2010 | Y120: 0
A121: 40 | B121: 20 | C121: 1 | D121: 40201 | E121: Cross Duathlon | F121: Jeune 8-11 | G121: Course à pied | H121: 500 | I121: =H121*1.1 -> 550 | J121: =H121*0.9 -> 450 | K121: 5 | L121: Min/km | M121: 0.005 | N121: =H121*M121 -> 2.5 | O121: =N121*1.25 -> 3.125 | P121: =N121*1.4 -> 3.5 | Q121: =O117 -> 1.5625 | R121: =N121/M121 -> 500 | S121: =O121/M121 -> 625 | T121: =P121/M121 -> 700 | U121: =S117 -> 312.5 | V121: =VLOOKUP(F121,AGE!F:J,4,FALSE) -> 2011 | W121: =VLOOKUP(F121,AGE!F:J,5,FALSE) -> 2008 | Y121: 0
A122: 40 | B122: 20 | C122: 2 | D122: 40202 | E122: Cross Duathlon | F122: Jeune 8-11 | G122: Vélo | H122: 2000 | I122: =H122*1.1 -> 2200 | J122: =H122*0.9 -> 1800 | K122: 15 | L122: Km/h | M122: 0.004 | N122: =H122*M122 -> 8 | O122: =N122*1.25 -> 10 | P122: =N122*1.4 -> 11.2 | Q122: =O118 -> 5 | R122: =N122/M122 -> 2000 | S122: =O122/M122 -> 2500 | T122: =P122/M122 -> 2800 | U122: =S118 -> 1250 | V122: =VLOOKUP(F122,AGE!F:J,4,FALSE) -> 2011 | W122: =VLOOKUP(F122,AGE!F:J,5,FALSE) -> 2008 | Y122: 0
A123: 40 | B123: 20 | C123: 3 | D123: 40203 | E123: Cross Duathlon | F123: Jeune 8-11 | G123: Course à pied | H123: 500 | I123: 550 | J123: 450 | K123: 5 | L123: Min/km | M123: 0.005 | N123: 2.5 | O123: 3.125 | P123: 3.5 | Q123: 1.5625 | R123: 500 | S123: 625 | T123: 700 | U123: =S119 -> 312.5 | V123: =VLOOKUP(F123,AGE!F:J,4,FALSE) -> 2011 | W123: =VLOOKUP(F123,AGE!F:J,5,FALSE) -> 2008 | Y123: 0
A124: 40 | B124: 20 | C124: 4 | D124: 40204 | E124: Cross Duathlon | F124: Jeune 8-11 | G124: Total | H124: =SUM(H121:H123) -> 3000 | I124: =SUM(I121:I123) -> 3300 | J124: =SUM(J121:J123) -> 2700 | N124: =SUM(N121:N123) -> 13 | O124: =SUM(O121:O123) -> 16.25 | Q124: =SUM(Q121:Q123) -> 8.125 | R124: =SUM(R121:R123) -> 3000 | S124: =SUM(S121:S123) -> 3750 | U124: =SUM(U121:U123) -> 1875 | V124: =VLOOKUP(F124,AGE!F:J,4,FALSE) -> 2011 | W124: =VLOOKUP(F124,AGE!F:J,5,FALSE) -> 2008 | Y124: 0
A125: 40 | B125: 30 | C125: 1 | D125: 40301 | E125: Cross Duathlon | F125: Jeune 10-13 | G125: Course à pied | H125: 750 | I125: =H125*1.1 -> 825 | J125: =H125*0.9 -> 675 | K125: 5 | L125: Min/km | M125: 0.005 | N125: =H125*M125 -> 3.75 | O125: =N125*1.25 -> 4.6875 | P125: =N125*1.4 -> 5.25 | Q125: =O121 -> 3.125 | R125: =N125/M125 -> 750 | S125: =O125/M125 -> 937.5 | T125: =P125/M125 -> 1050 | U125: =S121 -> 625 | V125: =VLOOKUP(F125,AGE!F:J,4,FALSE) -> 2009 | W125: =VLOOKUP(F125,AGE!F:J,5,FALSE) -> 2006 | Y125: 0
A126: 40 | B126: 30 | C126: 2 | D126: 40302 | E126: Cross Duathlon | F126: Jeune 10-13 | G126: Cyclisme | H126: 5000 | I126: =H126*1.1 -> 5500 | J126: =H126*0.9 -> 4500 | K126: 15 | L126: Km/h | M126: 0.004 | N126: =H126*M126 -> 20 | O126: =N126*1.25 -> 25 | P126: =N126*1.4 -> 28 | Q126: =O122 -> 10 | R126: =N126/M126 -> 5000 | S126: =O126/M126 -> 6250 | T126: =P126/M126 -> 7000 | U126: =S122 -> 2500 | V126: =VLOOKUP(F126,AGE!F:J,4,FALSE) -> 2009 | W126: =VLOOKUP(F126,AGE!F:J,5,FALSE) -> 2006 | Y126: 0
A127: 40 | B127: 30 | C127: 3 | D127: 40303 | E127: Cross Duathlon | F127: Jeune 10-13 | G127: Course à pied | H127: 750 | I127: 825 | J127: 675 | K127: 5 | L127: Min/km | M127: 0.005 | N127: 3.75 | O127: 4.6875 | P127: 5.25 | Q127: 3.125 | R127: 750 | S127: 937.5 | T127: 1050 | U127: =S123 -> 625 | V127: =VLOOKUP(F127,AGE!F:J,4,FALSE) -> 2009 | W127: =VLOOKUP(F127,AGE!F:J,5,FALSE) -> 2006 | Y127: 0
A128: 40 | B128: 30 | C128: 4 | D128: 40304 | E128: Cross Duathlon | F128: Jeune 10-13 | G128: Total | H128: =SUM(H125:H127) -> 6500 | I128: =SUM(I125:I127) -> 7150 | J128: =SUM(J125:J127) -> 5850 | N128: =SUM(N125:N127) -> 27.5 | O128: =SUM(O125:O127) -> 34.375 | Q128: =SUM(Q125:Q127) -> 16.25 | R128: =SUM(R125:R127) -> 6500 | S128: =SUM(S125:S127) -> 8125 | U128: =SUM(U125:U127) -> 3750 | V128: =VLOOKUP(F128,AGE!F:J,4,FALSE) -> 2009 | W128: =VLOOKUP(F128,AGE!F:J,5,FALSE) -> 2006 | Y128: 0
A129: 40 | B129: 40 | C129: 1 | D129: 40401 | E129: Cross Duathlon | F129: Jeune 12-19 | G129: Course à pied | H129: 1000 | I129: =H129*1.1 -> 1100 | J129: =H129*0.9 -> 900 | K129: 5 | L129: Min/km | M129: 0.005 | N129: =H129*M129 -> 5 | O129: =N129*1.25 -> 6.25 | P129: =N129*1.4 -> 7 | Q129: =O125 -> 4.6875 | R129: =N129/M129 -> 1000 | S129: =O129/M129 -> 1250 | T129: =P129/M129 -> 1400 | U129: =S125 -> 937.5 | V129: =VLOOKUP(F129,AGE!F:J,4,FALSE) -> 2007 | W129: =VLOOKUP(F129,AGE!F:J,5,FALSE) -> 2000 | Y129: 0
A130: 40 | B130: 40 | C130: 2 | D130: 40402 | E130: Cross Duathlon | F130: Jeune 12-19 | G130: Cyclisme | H130: 6000 | I130: =H130*1.1 -> 6600 | J130: =H130*0.9 -> 5400 | K130: 15 | L130: Km/h | M130: 0.004 | N130: =H130*M130 -> 24 | O130: =N130*1.25 -> 30 | P130: =N130*1.4 -> 33.6 | Q130: =O126 -> 25 | R130: =N130/M130 -> 6000 | S130: =O130/M130 -> 7500 | T130: =P130/M130 -> 8400 | U130: 5500 | V130: =VLOOKUP(F130,AGE!F:J,4,FALSE) -> 2007 | W130: =VLOOKUP(F130,AGE!F:J,5,FALSE) -> 2000 | Y130: 0
A131: 40 | B131: 40 | C131: 3 | D131: 40403 | E131: Cross Duathlon | F131: Jeune 12-19 | G131: Course à pied | H131: 1000 | I131: 1100 | J131: 900 | K131: 5 | L131: Min/km | M131: 0.005 | N131: 5 | O131: 6.25 | P131: 7 | Q131: 4.6875 | R131: 1000 | S131: 1250 | T131: 1400 | U131: =S127 -> 937.5 | V131: =VLOOKUP(F131,AGE!F:J,4,FALSE) -> 2007 | W131: =VLOOKUP(F131,AGE!F:J,5,FALSE) -> 2000 | Y131: 0
A132: 40 | B132: 40 | C132: 4 | D132: 40404 | E132: Cross Duathlon | F132: Jeune 12-19 | G132: Total | H132: =SUM(H129:H131) -> 8000 | I132: =SUM(I129:I131) -> 8800 | J132: =SUM(J129:J131) -> 7200 | N132: =SUM(N129:N131) -> 34 | O132: =SUM(O129:O131) -> 42.5 | Q132: =SUM(Q129:Q131) -> 34.375 | R132: =SUM(R129:R131) -> 8000 | S132: =SUM(S129:S131) -> 10000 | U132: =SUM(U129:U131) -> 7375 | V132: =VLOOKUP(F132,AGE!F:J,4,FALSE) -> 2007 | W132: =VLOOKUP(F132,AGE!F:J,5,FALSE) -> 2000 | Y132: 0
A133: 40 | B133: 50 | C133: 1 | D133: 40501 | E133: Cross Duathlon | F133: Distance XS | G133: Course à pied | H133: 2000 | I133: =H133*1.1 -> 2200 | J133: =H133*0.9 -> 1800 | K133: 4.5 | L133: Min/km | M133: 0.0045 | N133: =H133*M133 -> 9 | O133: =N133*1.25 -> 11.25 | P133: =N133*1.4 -> 12.6 | Q133: =O129 -> 6.25 | R133: =N133/M133 -> 2000 | S133: =O133/M133 -> 2500 | T133: =P133/M133 -> 2800 | U133: =(N133*0.5)/M133 -> 1000 | V133: =VLOOKUP(F133,AGE!F:J,4,FALSE) -> 2007 | W133: =VLOOKUP(F133,AGE!F:J,5,FALSE) -> 1920 | Y133: 0
A134: 40 | B134: 50 | C134: 2 | D134: =CONCATENATE(A134,B134,C134) -> 40502 | E134: Cross Duathlon | F134: Distance XS | G134: Cyclisme | H134: 5500 | I134: =H134*1.1 -> 6050 | J134: =H134*0.9 -> 4950 | K134: 15 | L134: Km/h | M134: 0.004 | N134: =H134*M134 -> 22 | O134: =N134*1.25 -> 27.5 | P134: 30.8 | Q134: =O130 -> 30 | R134: =N134/M134 -> 5500 | S134: =O134/M134 -> 6875 | T134: =P134/M134 -> 7700 | U134: =(N134*0.5)/M134 -> 2750 | V134: =VLOOKUP(F134,AGE!F:J,4,FALSE) -> 2007 | W134: =VLOOKUP(F134,AGE!F:J,5,FALSE) -> 1920 | Y134: 0
A135: 40 | B135: 50 | C135: 3 | D135: 40503 | E135: Cross Duathlon | F135: Distance XS | G135: Course à pied | H135: 1000 | I135: 1100 | J135: 900 | K135: 4.5 | L135: Min/km | M135: 0.0045 | N135: 4.5 | O135: 5.625 | P135: 6.3 | Q135: 6.25 | R135: 1000 | S135: 1250 | T135: 1400 | U135: 500 | V135: =VLOOKUP(F135,AGE!F:J,4,FALSE) -> 2007 | W135: =VLOOKUP(F135,AGE!F:J,5,FALSE) -> 1920 | Y135: 0
A136: 40 | B136: 50 | C136: 4 | D136: 40504 | E136: Cross Duathlon | F136: Distance XS | G136: Total | H136: =SUM(H133:H135) -> 8500 | I136: =SUM(I133:I135) -> 9350 | J136: =SUM(J133:J135) -> 7650 | N136: =SUM(N133:N135) -> 35.5 | O136: =SUM(O133:O135) -> 44.375 | Q136: =SUM(Q133:Q135) -> 42.5 | R136: =SUM(R133:R135) -> 8500 | S136: =SUM(S133:S135) -> 10625 | U136: =SUM(U133:U135) -> 4250 | V136: =VLOOKUP(F136,AGE!F:J,4,FALSE) -> 2007 | W136: =VLOOKUP(F136,AGE!F:J,5,FALSE) -> 1920 | Y136: 0
A137: 40 | B137: 60 | C137: 1 | D137: 40601 | E137: Cross Duathlon | F137: Distance S | G137: Course à pied | H137: 4000 | I137: =H137*1.1 -> 4400 | J137: =H137*0.9 -> 3600 | K137: 4.5 | L137: Min/km | M137: 0.0045 | N137: =H137*M137 -> 18 | O137: =N137*1.25 -> 22.5 | P137: =N137*1.4 -> 25.2 | Q137: =O133 -> 11.25 | R137: =N137/M137 -> 4000 | S137: =O137/M137 -> 5000 | T137: =P137/M137 -> 5600 | U137: =S133 -> 2500 | V137: =VLOOKUP(F137,AGE!F:J,4,FALSE) -> 2003 | W137: =VLOOKUP(F137,AGE!F:J,5,FALSE) -> 1920 | Y137: 0
A138: 40 | B138: 60 | C138: 2 | D138: 40602 | E138: Cross Duathlon | F138: Distance S | G138: Cyclisme | H138: 11000 | I138: =H138*1.1 -> 12100 | J138: =H138*0.9 -> 9900 | K138: 15 | L138: Km/h | M138: 0.004 | N138: =H138*M138 -> 44 | O138: =N138*1.25 -> 55 | P138: 61.6 | Q138: =O134 -> 27.5 | R138: =N138/M138 -> 11000 | S138: =O138/M138 -> 13750 | T138: =P138/M138 -> 15400 | U138: =S134 -> 6875 | V138: =VLOOKUP(F138,AGE!F:J,4,FALSE) -> 2003 | W138: =VLOOKUP(F138,AGE!F:J,5,FALSE) -> 1920 | Y138: 0
A139: 40 | B139: 60 | C139: 3 | D139: 40603 | E139: Cross Duathlon | F139: Distance S | G139: Course à pied | H139: 2000 | I139: 2200 | J139: 1800 | K139: 4.5 | L139: Min/km | M139: 0.0045 | N139: 9 | O139: 11.25 | P139: 12.6 | Q139: 5.625 | R139: 2000 | S139: 2500 | T139: 2800 | U139: =S135 -> 1250 | V139: =VLOOKUP(F139,AGE!F:J,4,FALSE) -> 2003 | W139: =VLOOKUP(F139,AGE!F:J,5,FALSE) -> 1920 | Y139: 0
A140: 40 | B140: 60 | C140: 4 | D140: 40604 | E140: Cross Duathlon | F140: Distance S | G140: Total | H140: =SUM(H137:H139) -> 17000 | I140: =SUM(I137:I139) -> 18700 | J140: =SUM(J137:J139) -> 15300 | N140: =SUM(N137:N139) -> 71 | O140: =SUM(O137:O139) -> 88.75 | Q140: =SUM(Q137:Q139) -> 44.375 | R140: =SUM(R137:R139) -> 17000 | S140: =SUM(S137:S139) -> 21250 | U140: =SUM(U137:U139) -> 10625 | V140: =VLOOKUP(F140,AGE!F:J,4,FALSE) -> 2003 | W140: =VLOOKUP(F140,AGE!F:J,5,FALSE) -> 1920 | Y140: 0
A141: 40 | B141: 70 | C141: 1 | D141: 40701 | E141: Cross Duathlon | F141: Distance M | G141: Course à pied | H141: 8000 | I141: =H141*1.1 -> 8800 | J141: =H141*0.9 -> 7200 | K141: 4.5 | L141: Min/km | M141: 0.0045 | N141: =H141*M141 -> 36 | O141: =N141*1.25 -> 45 | P141: =N141*1.4 -> 50.4 | Q141: =O137 -> 22.5 | R141: =N141/M141 -> 8000 | S141: =O141/M141 -> 10000 | T141: =P141/M141 -> 11200 | U141: =S137 -> 5000 | V141: =VLOOKUP(F141,AGE!F:J,4,FALSE) -> 2001 | W141: =VLOOKUP(F141,AGE!F:J,5,FALSE) -> 1920 | Y141: 0
A142: 40 | B142: 70 | C142: 2 | D142: 40702 | E142: Cross Duathlon | F142: Distance M | G142: Vélo | H142: 22000 | I142: =H142*1.1 -> 24200 | J142: =H142*0.9 -> 19800 | K142: 15 | L142: Km/h | M142: 0.004 | N142: =H142*M142 -> 88 | O142: =N142*1.25 -> 110 | P142: 123.2 | Q142: =O138 -> 55 | R142: =N142/M142 -> 22000 | S142: =O142/M142 -> 27500 | T142: =P142/M142 -> 30800 | U142: =S138 -> 13750 | V142: =VLOOKUP(F142,AGE!F:J,4,FALSE) -> 2001 | W142: =VLOOKUP(F142,AGE!F:J,5,FALSE) -> 1920 | Y142: 0
A143: 40 | B143: 70 | C143: 3 | D143: 40703 | E143: Cross Duathlon | F143: Distance M | G143: Course à pied | H143: 4000 | I143: 4400 | J143: 3600 | K143: 4.5 | L143: Min/km | M143: 0.0045 | N143: 18 | O143: 22.5 | P143: 25.2 | Q143: =O139 -> 11.25 | R143: 4000 | S143: 5000 | T143: 5600 | U143: =S139 -> 2500 | V143: =VLOOKUP(F143,AGE!F:J,4,FALSE) -> 2001 | W143: =VLOOKUP(F143,AGE!F:J,5,FALSE) -> 1920 | Y143: 0
A144: 40 | B144: 70 | C144: 4 | D144: 40704 | E144: Cross Duathlon | F144: Distance M | G144: Total | H144: =SUM(H141:H143) -> 34000 | I144: =SUM(I141:I143) -> 37400 | J144: =SUM(J141:J143) -> 30600 | N144: =SUM(N141:N143) -> 142 | O144: =SUM(O141:O143) -> 177.5 | Q144: =SUM(Q141:Q142) -> 77.5 | R144: =SUM(R141:R143) -> 34000 | S144: =SUM(S141:S143) -> 42500 | U144: =SUM(U141:U143) -> 21250 | V144: =VLOOKUP(F144,AGE!F:J,4,FALSE) -> 2001 | W144: =VLOOKUP(F144,AGE!F:J,5,FALSE) -> 1920 | Y144: 0
A145: 40 | B145: 80 | C145: 1 | D145: 40801 | E145: Cross Duathlon | F145: Distance L | G145: Course à pied | H145: 16000 | I145: =H145*1.1 -> 17600 | J145: =H145*0.9 -> 14400 | K145: 4.5 | L145: Min/km | M145: =IF(L145="Sec/100m",((K145)/60/100),(IF(L145="Km/h",60/K145/1000,(IF(L145="Min/km",K145/1000,""))))) -> 0.0045 | N145: =H145*M145 -> 72 | O145: =N145*1.25 -> 90 | Q145: =O141 -> 45 | R145: =N145/M145 -> 16000 | S145: =O145/M145 -> 20000 | T145: =P145/M145 -> 0 | U145: =S141 -> 10000 | V145: =VLOOKUP(F145,AGE!F:J,4,FALSE) -> 2001 | W145: =VLOOKUP(F145,AGE!F:J,5,FALSE) -> 1920 | Y145: 0
A146: 40 | B146: 80 | C146: 2 | D146: 40802 | E146: Cross Duathlon | F146: Distance L | G146: Cyclisme | H146: 44000 | I146: =H146*1.1 -> 48400 | J146: =H146*0.9 -> 39600 | K146: 15 | L146: Km/h | M146: 0.004 | N146: =H146*M146 -> 176 | O146: =N146*1.25 -> 220 | Q146: =O142 -> 110 | R146: =N146/M146 -> 44000 | S146: =O146/M146 -> 55000 | T146: =P146/M146 -> 0 | U146: =S142 -> 27500 | V146: =VLOOKUP(F146,AGE!F:J,4,FALSE) -> 2001 | W146: =VLOOKUP(F146,AGE!F:J,5,FALSE) -> 1920 | Y146: 0
A147: 40 | B147: 80 | C147: 3 | D147: 40803 | E147: Cross Duathlon | F147: Distance L | G147: Course à pied | H147: 8000 | I147: 8800 | J147: 7200 | K147: 4.5 | L147: Min/km | M147: 0.0045 | N147: 36 | O147: 45 | Q147: =O143 -> 22.5 | R147: 8000 | S147: 10000 | T147: 0 | U147: =S143 -> 5000 | V147: =VLOOKUP(F147,AGE!F:J,4,FALSE) -> 2001 | W147: =VLOOKUP(F147,AGE!F:J,5,FALSE) -> 1920 | Y147: 0
A148: 40 | B148: 80 | C148: 4 | D148: 40804 | E148: Cross Duathlon | F148: Distance L | G148: Total | H148: =SUM(H145:H147) -> 68000 | I148: =SUM(I145:I147) -> 74800 | J148: =SUM(J145:J147) -> 61200 | N148: =SUM(N145:N147) -> 284 | O148: =SUM(O145:O147) -> 355 | Q148: =SUM(Q145:Q146) -> 155 | R148: =SUM(R145:R147) -> 68000 | S148: =SUM(S145:S147) -> 85000 | U148: =SUM(U145:U147) -> 42500 | V148: =VLOOKUP(F148,AGE!F:J,4,FALSE) -> 2001 | W148: =VLOOKUP(F148,AGE!F:J,5,FALSE) -> 1920 | Y148: 0
A149: 40 | B149: 90 | C149: 1 | D149: 40901 | E149: Cross Duathlon | F149: Distance XL | G149: Course à pied | H149: 24000 | I149: =H149*1.1 -> 26400 | J149: =H149*0.9 -> 21600 | K149: 4.5 | L149: Min/km | M149: 0.0045 | N149: =H149*M149 -> 108 | O149: =N149*1.25 -> 135 | Q149: =O145 -> 90 | R149: =N149/M149 -> 24000 | S149: =O149/M149 -> 30000 | T149: =P149/M149 -> 0 | U149: =(N149*0.75)/M149 -> 18000 | V149: =VLOOKUP(F149,AGE!F:J,4,FALSE) -> 2001 | W149: =VLOOKUP(F149,AGE!F:J,5,FALSE) -> 1920 | Y149: 0
A150: 40 | B150: 90 | C150: 2 | D150: 40902 | E150: Cross Duathlon | F150: Distance XL | G150: Cyclisme | H150: 66000 | I150: =H150*1.1 -> 72600 | J150: =H150*0.9 -> 59400 | K150: 15 | L150: Km/h | M150: 0.004 | N150: =H150*M150 -> 264 | O150: =N150*1.25 -> 330 | Q150: =O146 -> 220 | R150: =N150/M150 -> 66000 | S150: =O150/M150 -> 82500 | T150: =P150/M150 -> 0 | U150: 49500 | V150: =VLOOKUP(F150,AGE!F:J,4,FALSE) -> 2001 | W150: =VLOOKUP(F150,AGE!F:J,5,FALSE) -> 1920 | Y150: 0
A151: 40 | B151: 90 | C151: 3 | D151: 40903 | E151: Cross Duathlon | F151: Distance XL | G151: Course à pied | H151: 12000 | I151: 13200 | J151: 10800 | K151: 4.5 | L151: Min/km | M151: 0.0045 | N151: =H151*M151 -> 54 | O151: 67.5 | Q151: =O147 -> 45 | R151: 12000 | S151: 15000 | T151: 0 | U151: 9000 | V151: =VLOOKUP(F151,AGE!F:J,4,FALSE) -> 2001 | W151: =VLOOKUP(F151,AGE!F:J,5,FALSE) -> 1920 | Y151: 0
A152: 40 | B152: 90 | C152: 4 | D152: 40904 | E152: Cross Duathlon | F152: Distance XL | G152: Total | H152: =SUM(H149:H151) -> 102000 | I152: =SUM(I149:I151) -> 112200 | J152: =SUM(J149:J151) -> 91800 | N152: =SUM(N149:N151) -> 426 | O152: =SUM(O149:O151) -> 532.5 | Q152: =SUM(Q149:Q150) -> 310 | R152: =SUM(R149:R151) -> 102000 | S152: =SUM(S149:S151) -> 127500 | U152: =SUM(U149:U151) -> 76500 | V152: =VLOOKUP(F152,AGE!F:J,4,FALSE) -> 2001 | W152: =VLOOKUP(F152,AGE!F:J,5,FALSE) -> 1920 | Y152: 0
A153: 50 | B153: 10 | C153: 1 | D153: 50101 | E153: Aquathlon | F153: Jeune 6-9 | G153: Natation | H153: 50 | I153: =H153*1.1 -> 55 | J153: =H153*0.9 -> 45 | K153: =60+50 -> 110 | L153: Sec/100m | M153: 0.01833333333 | N153: =H153*M153 -> 0.9166666667 | O153: =N153*1.25 -> 1.145833333 | P153: =N153*1.4 -> 1.283333333 | R153: =N153/M153 -> 50 | S153: =O153/M153 -> 62.5 | T153: =P153/M153 -> 70 | U153: =+R153/2 -> 25 | V153: =VLOOKUP(F153,AGE!F:J,4,FALSE) -> 2013 | W153: =VLOOKUP(F153,AGE!F:J,5,FALSE) -> 2010 | Y153: 0
A154: 50 | B154: 10 | C154: 2 | D154: 50102 | E154: Aquathlon | F154: Jeune 6-9 | G154: Course à pied | H154: 500 | I154: =H154*1.1 -> 550 | J154: =H154*0.9 -> 450 | K154: 5 | L154: Min/km | M154: 0.005 | N154: =H154*M154 -> 2.5 | O154: =N154*1.25 -> 3.125 | P154: =N154*1.4 -> 3.5 | R154: =N154/M154 -> 500 | S154: =O154/M154 -> 625 | T154: =P154/M154 -> 700 | U154: =+R154/2 -> 250 | V154: =VLOOKUP(F154,AGE!F:J,4,FALSE) -> 2013 | W154: =VLOOKUP(F154,AGE!F:J,5,FALSE) -> 2010 | Y154: 0
A155: 50 | B155: 10 | C155: 3 | D155: 50103 | E155: Aquathlon | F155: Jeune 6-9 | V155: =VLOOKUP(F155,AGE!F:J,4,FALSE) -> 2013 | W155: =VLOOKUP(F155,AGE!F:J,5,FALSE) -> 2010 | Y155: 0
A156: 50 | B156: 10 | C156: 4 | D156: 50104 | E156: Aquathlon | F156: Jeune 6-9 | G156: Total | H156: =SUM(H153:H154) -> 550 | I156: =SUM(I153:I154) -> 605 | J156: 495 | K156: =SUM(K153:K154) -> 115 | N156: =SUM(N153:N154) -> 3.416666667 | O156: =SUM(O153:O154) -> 4.270833333 | P156: =SUM(P153:P154) -> 4.783333333 | Q156: 0 | R156: =SUM(R153:R155) -> 550 | S156: =SUM(S153:S155) -> 687.5 | U156: =SUM(U153:U155) -> 275 | V156: =VLOOKUP(F156,AGE!F:J,4,FALSE) -> 2013 | W156: =VLOOKUP(F156,AGE!F:J,5,FALSE) -> 2010 | Y156: 0
A157: 50 | B157: 20 | C157: 1 | D157: 50201 | E157: Aquathlon | F157: Jeune 8-11 | G157: Natation | H157: 100 | I157: =H157*1.1 -> 110 | J157: =H157*0.9 -> 90 | K157: =60+50 -> 110 | L157: Sec/100m | M157: =IF(L157="Sec/100m",((K157)/60/100),(IF(L157="Km/h",60/K157/1000,(IF(L157="Min/km",K157/1000,""))))) -> 0.01833333333 | N157: =H157*M157 -> 1.833333333 | O157: =N157*1.25 -> 2.291666667 | P157: =N157*1.4 -> 2.566666667 | Q157: =O153 -> 1.145833333 | R157: =N157/M157 -> 100 | S157: =O157/M157 -> 125 | T157: =P157/M157 -> 140 | U157: =S153 -> 62.5 | V157: =VLOOKUP(F157,AGE!F:J,4,FALSE) -> 2011 | W157: =VLOOKUP(F157,AGE!F:J,5,FALSE) -> 2008 | Y157: 0
A158: 50 | B158: 20 | C158: 2 | D158: 50202 | E158: Aquathlon | F158: Jeune 8-11 | G158: Course à pied | H158: 1000 | I158: =H158*1.1 -> 1100 | J158: =H158*0.9 -> 900 | K158: 5 | L158: Min/km | M158: 0.005 | N158: =H158*M158 -> 5 | O158: =N158*1.25 -> 6.25 | P158: =N158*1.4 -> 7 | Q158: =O154 -> 3.125 | R158: =N158/M158 -> 1000 | S158: =O158/M158 -> 1250 | T158: =P158/M158 -> 1400 | U158: =S154 -> 625 | V158: =VLOOKUP(F158,AGE!F:J,4,FALSE) -> 2011 | W158: =VLOOKUP(F158,AGE!F:J,5,FALSE) -> 2008 | Y158: 0
A159: 50 | B159: 20 | C159: 3 | D159: =CONCATENATE(A159,B159,C159) -> 50203 | E159: Aquathlon | F159: Jeune 8-11 | U159: =S155 -> 0 | V159: =VLOOKUP(F159,AGE!F:J,4,FALSE) -> 2011 | W159: =VLOOKUP(F159,AGE!F:J,5,FALSE) -> 2008 | Y159: =IF(U159>R159,"Attention dist basse assimilée > distance officielle",) -> 0
A160: 50 | B160: 20 | C160: 4 | D160: 50204 | E160: Aquathlon | F160: Jeune 8-11 | G160: Total | H160: =SUM(H157:H158) -> 1100 | I160: =SUM(I157:I158) -> 1210 | J160: =SUM(J157:J158) -> 990 | K160: =SUM(K157:K158) -> 115 | N160: =SUM(N157:N158) -> 6.833333333 | O160: =SUM(O157:O158) -> 8.541666667 | P160: =SUM(P157:P158) -> 9.566666667 | Q160: 4.270833333 | R160: =SUM(R157:R159) -> 1100 | S160: =SUM(S157:S159) -> 1375 | U160: =SUM(U157:U159) -> 687.5 | V160: =VLOOKUP(F160,AGE!F:J,4,FALSE) -> 2011 | W160: =VLOOKUP(F160,AGE!F:J,5,FALSE) -> 2008 | Y160: 0
A161: 50 | B161: 30 | C161: 1 | D161: 50301 | E161: Aquathlon | F161: Jeune 10-13 | G161: Natation | H161: 200 | I161: =H161*1.1 -> 220 | J161: =H161*0.9 -> 180 | K161: =60+50 -> 110 | L161: Sec/100m | M161: 0.01833333333 | N161: =H161*M161 -> 3.666666667 | O161: =N161*1.25 -> 4.583333333 | P161: =N161*1.4 -> 5.133333333 | Q161: =O157 -> 2.291666667 | R161: =N161/M161 -> 200 | S161: =O161/M161 -> 250 | T161: =P161/M161 -> 280 | U161: =S157 -> 125 | V161: =VLOOKUP(F161,AGE!F:J,4,FALSE) -> 2009 | W161: =VLOOKUP(F161,AGE!F:J,5,FALSE) -> 2006 | Y161: 0
A162: 50 | B162: 30 | C162: 2 | D162: 50302 | E162: Aquathlon | F162: Jeune 10-13 | G162: Course à pied | H162: 1500 | I162: =H162*1.1 -> 1650 | J162: =H162*0.9 -> 1350 | K162: 5 | L162: Min/km | M162: 0.005 | N162: =H162*M162 -> 7.5 | O162: =N162*1.25 -> 9.375 | P162: =N162*1.4 -> 10.5 | Q162: =O158 -> 6.25 | R162: =N162/M162 -> 1500 | S162: =O162/M162 -> 1875 | T162: =P162/M162 -> 2100 | U162: =S158 -> 1250 | V162: =VLOOKUP(F162,AGE!F:J,4,FALSE) -> 2009 | W162: =VLOOKUP(F162,AGE!F:J,5,FALSE) -> 2006 | Y162: 0
A163: 50 | B163: 30 | C163: 3 | D163: =CONCATENATE(A163,B163,C163) -> 50303 | E163: Aquathlon | F163: Jeune 10-13 | U163: =S159 -> 0 | V163: =VLOOKUP(F163,AGE!F:J,4,FALSE) -> 2009 | W163: =VLOOKUP(F163,AGE!F:J,5,FALSE) -> 2006 | Y163: 0
A164: 50 | B164: 30 | C164: 4 | D164: 50304 | E164: Aquathlon | F164: Jeune 10-13 | G164: Total | H164: =SUM(H161:H162) -> 1700 | I164: =SUM(I161:I162) -> 1870 | J164: =SUM(J161:J162) -> 1530 | K164: =SUM(K161:K162) -> 115 | N164: =SUM(N161:N162) -> 11.16666667 | O164: =SUM(O161:O162) -> 13.95833333 | P164: =SUM(P161:P162) -> 15.63333333 | Q164: 8.541666667 | R164: =SUM(R161:R163) -> 1700 | S164: =SUM(S161:S163) -> 2125 | U164: =SUM(U161:U163) -> 1375 | V164: =VLOOKUP(F164,AGE!F:J,4,FALSE) -> 2009 | W164: =VLOOKUP(F164,AGE!F:J,5,FALSE) -> 2006 | Y164: 0
A165: 50 | B165: 40 | C165: 1 | D165: 50401 | E165: Aquathlon | F165: Jeune 12-19 | G165: Natation | H165: 300 | I165: =H165*1.1 -> 330 | J165: =H165*0.9 -> 270 | K165: =60+50 -> 110 | L165: Sec/100m | M165: 0.01833333333 | N165: =H165*M165 -> 5.5 | O165: =N165*1.25 -> 6.875 | P165: =N165*1.4 -> 7.7 | Q165: =O161 -> 4.583333333 | R165: =N165/M165 -> 300 | S165: =O165/M165 -> 375 | T165: =P165/M165 -> 420 | U165: =S161 -> 250 | V165: =VLOOKUP(F165,AGE!F:J,4,FALSE) -> 2007 | W165: =VLOOKUP(F165,AGE!F:J,5,FALSE) -> 2000 | Y165: 0
A166: 50 | B166: 40 | C166: 2 | D166: 50402 | E166: Aquathlon | F166: Jeune 12-19 | G166: Course à pied | H166: 2000 | I166: =H166*1.1 -> 2200 | J166: =H166*0.9 -> 1800 | K166: 5 | L166: Min/km | M166: 0.005 | N166: =H166*M166 -> 10 | O166: =N166*1.25 -> 12.5 | P166: =N166*1.4 -> 14 | Q166: =O162 -> 9.375 | R166: =N166/M166 -> 2000 | S166: =O166/M166 -> 2500 | T166: =P166/M166 -> 2800 | U166: =S162 -> 1875 | V166: =VLOOKUP(F166,AGE!F:J,4,FALSE) -> 2007 | W166: =VLOOKUP(F166,AGE!F:J,5,FALSE) -> 2000 | Y166: 0
A167: 50 | B167: 40 | C167: 3 | D167: 50403 | E167: Aquathlon | F167: Jeune 12-19 | U167: =S163 -> 0 | V167: =VLOOKUP(F167,AGE!F:J,4,FALSE) -> 2007 | W167: =VLOOKUP(F167,AGE!F:J,5,FALSE) -> 2000 | Y167: 0
A168: 50 | B168: 40 | C168: 4 | D168: 50404 | E168: Aquathlon | F168: Jeune 12-19 | G168: Total | H168: =SUM(H165:H166) -> 2300 | I168: =SUM(I165:I166) -> 2530 | J168: =SUM(J165:J166) -> 2070 | K168: =SUM(K165:K166) -> 115 | N168: =SUM(N165:N166) -> 15.5 | O168: =SUM(O165:O166) -> 19.375 | P168: =SUM(P165:P166) -> 21.7 | Q168: 13.95833333 | R168: =SUM(R165:R167) -> 2300 | S168: =SUM(S165:S167) -> 2875 | U168: =SUM(U165:U167) -> 2125 | V168: =VLOOKUP(F168,AGE!F:J,4,FALSE) -> 2007 | W168: =VLOOKUP(F168,AGE!F:J,5,FALSE) -> 2000 | Y168: 0
A169: 50 | B169: 50 | C169: 1 | D169: 50501 | E169: Aquathlon | F169: Distance XS | G169: Natation | H169: 500 | I169: =H169*1.1 -> 550 | J169: =H169*0.9 -> 450 | K169: 105 | L169: Sec/100m | M169: 0.0175 | N169: =H169*M169 -> 8.75 | O169: =N169*1.25 -> 10.9375 | P169: =N169*1.4 -> 12.25 | Q169: =O165 -> 6.875 | R169: =N169/M169 -> 500 | S169: =O169/M169 -> 625 | T169: =P169/M169 -> 700 | U169: =(N169*0.5)/M169 -> 250 | V169: =VLOOKUP(F169,AGE!F:J,4,FALSE) -> 2007 | W169: =VLOOKUP(F169,AGE!F:J,5,FALSE) -> 1920 | Y169: 0
A170: 50 | B170: 50 | C170: 2 | D170: 50502 | E170: Aquathlon | F170: Distance XS | G170: Course à pied | H170: 2500 | I170: =H170*1.1 -> 2750 | J170: =H170*0.9 -> 2250 | K170: 4.5 | L170: Min/km | M170: 0.0045 | N170: =H170*M170 -> 11.25 | O170: =N170*1.25 -> 14.0625 | P170: =N170*1.4 -> 15.75 | Q170: =O166 -> 12.5 | R170: =N170/M170 -> 2500 | S170: =O170/M170 -> 3125 | T170: =P170/M170 -> 3500 | U170: =(N170*0.5)/M170 -> 1250 | V170: =VLOOKUP(F170,AGE!F:J,4,FALSE) -> 2007 | W170: =VLOOKUP(F170,AGE!F:J,5,FALSE) -> 1920 | Y170: 0
A171: 50 | B171: 50 | C171: 3 | D171: 50503 | E171: Aquathlon | F171: Distance XS | V171: =VLOOKUP(F171,AGE!F:J,4,FALSE) -> 2007 | W171: =VLOOKUP(F171,AGE!F:J,5,FALSE) -> 1920 | Y171: 0
A172: 50 | B172: 50 | C172: 4 | D172: 50504 | E172: Aquathlon | F172: Distance XS | G172: Total | H172: =SUM(H169:H170) -> 3000 | I172: =SUM(I169:I170) -> 3300 | J172: =SUM(J169:J170) -> 2700 | K172: =SUM(K169:K170) -> 109.5 | N172: =SUM(N169:N170) -> 20 | O172: =SUM(O169:O170) -> 25 | Q172: =SUM(Q169:Q170) -> 19.375 | R172: =SUM(R169:R171) -> 3000 | S172: =SUM(S169:S171) -> 3750 | U172: =SUM(U169:U171) -> 1500 | V172: =VLOOKUP(F172,AGE!F:J,4,FALSE) -> 2007 | W172: =VLOOKUP(F172,AGE!F:J,5,FALSE) -> 1920 | Y172: 0
A173: 50 | B173: 60 | C173: 1 | D173: 50601 | E173: Aquathlon | F173: Distance S | G173: Natation | H173: 1000 | I173: =H173*1.1 -> 1100 | J173: =H173*0.9 -> 900 | K173: 105 | L173: Sec/100m | M173: =IF(L173="Sec/100m",((K173)/60/100),(IF(L173="Km/h",60/K173/1000,(IF(L173="Min/km",K173/1000,""))))) -> 0.0175 | N173: =H173*M173 -> 17.5 | O173: =N173*1.25 -> 21.875 | P173: =N173*1.4 -> 24.5 | Q173: =O169 -> 10.9375 | R173: =N173/M173 -> 1000 | S173: =O173/M173 -> 1250 | T173: =P173/M173 -> 1400 | U173: =S169 -> 625 | V173: =VLOOKUP(F173,AGE!F:J,4,FALSE) -> 2003 | W173: =VLOOKUP(F173,AGE!F:J,5,FALSE) -> 1920 | Y173: 0
A174: 50 | B174: 60 | C174: 2 | D174: 50602 | E174: Aquathlon | F174: Distance S | G174: Course à pied | H174: 5000 | I174: =H174*1.1 -> 5500 | J174: =H174*0.9 -> 4500 | K174: 4.5 | L174: Min/km | M174: 0.0045 | N174: =H174*M174 -> 22.5 | O174: =N174*1.25 -> 28.125 | P174: =N174*1.4 -> 31.5 | Q174: =O170 -> 14.0625 | R174: =N174/M174 -> 5000 | S174: =O174/M174 -> 6250 | T174: =P174/M174 -> 7000 | U174: =S170 -> 3125 | V174: =VLOOKUP(F174,AGE!F:J,4,FALSE) -> 2003 | W174: =VLOOKUP(F174,AGE!F:J,5,FALSE) -> 1920 | Y174: 0
A175: 50 | B175: 60 | C175: 3 | D175: 50603 | E175: Aquathlon | F175: Distance S | U175: =S171 -> 0 | V175: =VLOOKUP(F175,AGE!F:J,4,FALSE) -> 2003 | W175: =VLOOKUP(F175,AGE!F:J,5,FALSE) -> 1920 | Y175: 0
A176: 50 | B176: 60 | C176: 4 | D176: 50604 | E176: Aquathlon | F176: Distance S | G176: Total | H176: =SUM(H173:H174) -> 6000 | I176: =SUM(I173:I174) -> 6600 | J176: =SUM(J173:J174) -> 5400 | K176: =SUM(K173:K174) -> 109.5 | N176: =SUM(N173:N174) -> 40 | O176: =SUM(O173:O174) -> 50 | Q176: =SUM(Q173:Q174) -> 25 | R176: =SUM(R173:R175) -> 6000 | S176: =SUM(S173:S175) -> 7500 | U176: =SUM(U173:U175) -> 3750 | V176: =VLOOKUP(F176,AGE!F:J,4,FALSE) -> 2003 | W176: =VLOOKUP(F176,AGE!F:J,5,FALSE) -> 1920 | Y176: 0
A177: 50 | B177: 70 | C177: 1 | D177: 50701 | E177: Aquathlon | F177: Distance M | G177: Natation | H177: 2000 | I177: =H177*1.1 -> 2200 | J177: =H177*0.9 -> 1800 | K177: 105 | L177: Sec/100m | M177: 0.0175 | N177: =H177*M177 -> 35 | O177: =N177*1.25 -> 43.75 | P177: =N177*1.4 -> 49 | Q177: =O173 -> 21.875 | R177: =N177/M177 -> 2000 | S177: =O177/M177 -> 2500 | T177: =P177/M177 -> 2800 | U177: =S173 -> 1250 | V177: =VLOOKUP(F177,AGE!F:J,4,FALSE) -> 2001 | W177: =VLOOKUP(F177,AGE!F:J,5,FALSE) -> 1920 | Y177: 0
A178: 50 | B178: 70 | C178: 2 | D178: 50702 | E178: Aquathlon | F178: Distance M | G178: Course à pied | H178: 10000 | I178: =H178*1.1 -> 11000 | J178: =H178*0.9 -> 9000 | K178: 4.5 | L178: Min/km | M178: 0.0045 | N178: =H178*M178 -> 45 | O178: =N178*1.25 -> 56.25 | P178: =N178*1.4 -> 63 | Q178: =O174 -> 28.125 | R178: =N178/M178 -> 10000 | S178: =O178/M178 -> 12500 | T178: =P178/M178 -> 14000 | U178: =S174 -> 6250 | V178: =VLOOKUP(F178,AGE!F:J,4,FALSE) -> 2001 | W178: =VLOOKUP(F178,AGE!F:J,5,FALSE) -> 1920 | Y178: 0
A179: 50 | B179: 70 | C179: 3 | D179: 50703 | E179: Aquathlon | F179: Distance M | U179: =S175 -> 0 | V179: =VLOOKUP(F179,AGE!F:J,4,FALSE) -> 2001 | W179: =VLOOKUP(F179,AGE!F:J,5,FALSE) -> 1920 | Y179: 0
A180: 50 | B180: 70 | C180: 4 | D180: 50704 | E180: Aquathlon | F180: Distance M | G180: Total | H180: =SUM(H177:H178) -> 12000 | I180: =SUM(I177:I178) -> 13200 | J180: =SUM(J177:J178) -> 10800 | K180: =SUM(K177:K178) -> 109.5 | N180: =SUM(N177:N178) -> 80 | O180: =SUM(O177:O178) -> 100 | Q180: =SUM(Q177:Q178) -> 50 | R180: =SUM(R177:R179) -> 12000 | S180: =SUM(S177:S179) -> 15000 | U180: =SUM(U177:U179) -> 7500 | V180: =VLOOKUP(F180,AGE!F:J,4,FALSE) -> 2001 | W180: =VLOOKUP(F180,AGE!F:J,5,FALSE) -> 1920 | Y180: 0
A181: 50 | B181: 80 | C181: 1 | D181: 50801 | E181: Aquathlon | F181: Distance L | G181: Natation | H181: 3000 | I181: =H181*1.1 -> 3300 | J181: =H181*0.9 -> 2700 | K181: 105 | L181: Sec/100m | M181: 0.0175 | N181: =H181*M181 -> 52.5 | O181: =N181*1.25 -> 65.625 | Q181: =O177 -> 43.75 | R181: =N181/M181 -> 3000 | S181: =O181/M181 -> 3750 | T181: =P181/M181 -> 0 | U181: =S177 -> 2500 | V181: =VLOOKUP(F181,AGE!F:J,4,FALSE) -> 2001 | W181: =VLOOKUP(F181,AGE!F:J,5,FALSE) -> 1920 | Y181: 0
A182: 50 | B182: 80 | C182: 2 | D182: 50802 | E182: Aquathlon | F182: Distance L | G182: Course à pied | H182: 15000 | I182: =H182*1.1 -> 16500 | J182: =H182*0.9 -> 13500 | K182: 4.5 | L182: Min/km | M182: 0.0045 | N182: =H182*M182 -> 67.5 | O182: =N182*1.25 -> 84.375 | Q182: =O178 -> 56.25 | R182: =N182/M182 -> 15000 | S182: =O182/M182 -> 18750 | T182: =P182/M182 -> 0 | U182: =S178 -> 12500 | V182: =VLOOKUP(F182,AGE!F:J,4,FALSE) -> 2001 | W182: =VLOOKUP(F182,AGE!F:J,5,FALSE) -> 1920 | Y182: 0
A183: 50 | B183: 80 | C183: 3 | D183: =CONCATENATE(A183,B183,C183) -> 50803 | E183: Aquathlon | F183: Distance L | U183: =S179 -> 0 | V183: =VLOOKUP(F183,AGE!F:J,4,FALSE) -> 2001 | W183: =VLOOKUP(F183,AGE!F:J,5,FALSE) -> 1920 | Y183: 0
A184: 50 | B184: 80 | C184: 4 | D184: 50804 | E184: Aquathlon | F184: Distance L | G184: Total | H184: =SUM(H181:H182) -> 18000 | I184: =SUM(I181:I182) -> 19800 | J184: =SUM(J181:J182) -> 16200 | K184: =SUM(K181:K182) -> 109.5 | N184: =SUM(N181:N182) -> 120 | O184: =SUM(O181:O182) -> 150 | Q184: =SUM(Q181:Q182) -> 100 | R184: =SUM(R181:R183) -> 18000 | S184: =SUM(S181:S183) -> 22500 | U184: =SUM(U181:U183) -> 15000 | V184: =VLOOKUP(F184,AGE!F:J,4,FALSE) -> 2001 | W184: =VLOOKUP(F184,AGE!F:J,5,FALSE) -> 1920 | Y184: 0
A185: 50 | B185: 90 | C185: 1 | D185: 50901 | E185: Aquathlon | F185: Distance XL | G185: Natation | H185: 4000 | I185: =H185*1.1 -> 4400 | J185: =H185*0.9 -> 3600 | K185: 105 | L185: Sec/100m | M185: 0.0175 | N185: =H185*M185 -> 70 | O185: =N185*1.25 -> 87.5 | Q185: =O181 -> 65.625 | R185: =N185/M185 -> 4000 | S185: =O185/M185 -> 5000 | T185: =P185/M185 -> 0 | U185: =(N185*0.75)/M185 -> 3000 | V185: =VLOOKUP(F185,AGE!F:J,4,FALSE) -> 2001 | W185: =VLOOKUP(F185,AGE!F:J,5,FALSE) -> 1920 | Y185: 0
A186: 50 | B186: 90 | C186: 2 | D186: 50902 | E186: Aquathlon | F186: Distance XL | G186: Course à pied | H186: 20000 | I186: =H186*1.1 -> 22000 | J186: =H186*0.9 -> 18000 | K186: 4.5 | L186: Min/km | M186: 0.0045 | N186: =H186*M186 -> 90 | O186: =N186*1.25 -> 112.5 | Q186: =O182 -> 84.375 | R186: =N186/M186 -> 20000 | S186: =O186/M186 -> 25000 | T186: =P186/M186 -> 0 | U186: 15000 | V186: =VLOOKUP(F186,AGE!F:J,4,FALSE) -> 2001 | W186: =VLOOKUP(F186,AGE!F:J,5,FALSE) -> 1920 | Y186: 0
A187: 50 | B187: 90 | C187: 3 | D187: 50903 | E187: Aquathlon | F187: Distance XL | U187: =S183 -> 0 | V187: =VLOOKUP(F187,AGE!F:J,4,FALSE) -> 2001 | W187: =VLOOKUP(F187,AGE!F:J,5,FALSE) -> 1920 | Y187: 0
A188: 50 | B188: 90 | C188: 4 | D188: 50904 | E188: Aquathlon | F188: Distance XL | G188: Total | H188: =SUM(H185:H186) -> 24000 | I188: =SUM(I185:I186) -> 26400 | J188: =SUM(J185:J186) -> 21600 | N188: =SUM(N185:N186) -> 160 | O188: =SUM(O185:O186) -> 200 | Q188: =SUM(Q185:Q186) -> 150 | R188: =SUM(R185:R187) -> 24000 | S188: =SUM(S185:S187) -> 30000 | U188: =SUM(U185:U187) -> 18000 | V188: =VLOOKUP(F188,AGE!F:J,4,FALSE) -> 2001 | W188: =VLOOKUP(F188,AGE!F:J,5,FALSE) -> 1920 | Y188: 0
A189: 60 | B189: 10 | C189: 1 | D189: 60101 | E189: Bike and Run | F189: Jeune 6-9 | G189: Bike and Run | N189: =(O189+Q189)/2 -> 9 | O189: 12 | Q189: 6 | V189: =VLOOKUP(F189,AGE!F:J,4,FALSE) -> 2013 | W189: =VLOOKUP(F189,AGE!F:J,5,FALSE) -> 2010 | Y189: 0
A190: 60 | B190: 20 | C190: 1 | D190: 60201 | E190: Bike and Run | F190: Jeune 8-11 | G190: Bike and Run | N190: 15 | O190: 18 | Q190: 12 | V190: =VLOOKUP(F190,AGE!F:J,4,FALSE) -> 2011 | W190: =VLOOKUP(F190,AGE!F:J,5,FALSE) -> 2008 | Y190: 0
A191: 60 | B191: 30 | C191: 1 | D191: 60301 | E191: Bike and Run | F191: Jeune 10-13 | G191: Bike and Run | N191: 21 | O191: 24 | Q191: =+O190 -> 18 | V191: =VLOOKUP(F191,AGE!F:J,4,FALSE) -> 2009 | W191: =VLOOKUP(F191,AGE!F:J,5,FALSE) -> 2006 | Y191: 0
A192: 60 | B192: 40 | C192: 1 | D192: 60401 | E192: Bike and Run | F192: Jeune 12-19 | G192: Bike and Run | N192: 27 | O192: 30 | Q192: =+O191 -> 24 | V192: =VLOOKUP(F192,AGE!F:J,4,FALSE) -> 2007 | W192: =VLOOKUP(F192,AGE!F:J,5,FALSE) -> 2000 | Y192: 0
A193: 60 | B193: 50 | C193: 1 | D193: 60501 | E193: Bike and Run | F193: Distance XS | G193: Bike and Run | N193: 37.5 | O193: 45 | Q193: =+O192 -> 30 | V193: =VLOOKUP(F193,AGE!F:J,4,FALSE) -> 2007 | W193: =VLOOKUP(F193,AGE!F:J,5,FALSE) -> 1920 | Y193: 0
A194: 60 | B194: 60 | C194: 1 | D194: 60601 | E194: Bike and Run | F194: Distance S | G194: Bike and Run | N194: 60 | O194: 75 | Q194: =+O193 -> 45 | V194: =VLOOKUP(F194,AGE!F:J,4,FALSE) -> 2003 | W194: =VLOOKUP(F194,AGE!F:J,5,FALSE) -> 1920 | Y194: 0
A195: 60 | B195: 70 | C195: 1 | D195: 60701 | E195: Bike and Run | F195: Distance M | G195: Bike and Run | N195: 97.5 | O195: 120 | Q195: 75 | V195: =VLOOKUP(F195,AGE!F:J,4,FALSE) -> 2001 | W195: =VLOOKUP(F195,AGE!F:J,5,FALSE) -> 1920 | Y195: 0
A196: 60 | B196: 80 | C196: 1 | D196: 60801 | E196: Bike and Run | F196: Distance L | G196: Bike and Run | N196: 160 | O196: 200 | Q196: =+O195 -> 120 | V196: =VLOOKUP(F196,AGE!F:J,4,FALSE) -> 2001 | W196: =VLOOKUP(F196,AGE!F:J,5,FALSE) -> 1920 | Y196: 0
A197: 70 | B197: 50 | C197: 1 | D197: 70501 | E197: Triathon des neiges | F197: Distance XS | G197: Course à pied | H197: 2000 | I197: =H197*1.1 -> 2200 | J197: =H197*0.9 -> 1800 | K197: 4.5 | L197: Min/km | M197: =IF(L197="Sec/100m",((K197)/60/100),(IF(L197="Km/h",60/K197/1000,(IF(L197="Min/km",K197/1000,""))))) -> 0.0045 | N197: =H197*M197 -> 9 | O197: =N197*1.25 -> 11.25 | P197: =N197*1.4 -> 12.6 | Q197: =O193 -> 45 | R197: =N197/M197 -> 2000 | S197: =O197/M197 -> 2500 | T197: =P197/M197 -> 2800 | U197: =(N197*0.5)/M197 -> 1000 | V197: =VLOOKUP(F197,AGE!F:J,4,FALSE) -> 2007 | W197: =VLOOKUP(F197,AGE!F:J,5,FALSE) -> 1920 | Y197: 0
A198: 70 | B198: 50 | C198: 2 | D198: 70502 | E198: Triathon des neiges | F198: Distance XS | G198: Cyclisme | H198: 3500 | I198: 3850 | J198: 3150 | K198: 15 | L198: Km/h | M198: 0.004 | N198: 14 | O198: 17.5 | P198: 19.6 | Q198: =O194 -> 75 | R198: 3500 | S198: 4375 | T198: 4900 | U198: =(N198*0.5)/M198 -> 1750 | V198: =VLOOKUP(F198,AGE!F:J,4,FALSE) -> 2007 | W198: =VLOOKUP(F198,AGE!F:J,5,FALSE) -> 1920 | Y198: 0
A199: 70 | B199: 50 | C199: 3 | D199: 70503 | E199: Triathon des neiges | F199: Distance XS | G199: Ski de Fond | H199: 3000 | I199: 3300 | J199: 2700 | K199: 4.5 | L199: Min/km | M199: 0.0045 | N199: 13.5 | O199: 16.875 | P199: 18.9 | Q199: =O195 -> 120 | R199: 3000 | S199: 3750 | T199: 4200 | U199: 1500 | V199: =VLOOKUP(F199,AGE!F:J,4,FALSE) -> 2007 | W199: =VLOOKUP(F199,AGE!F:J,5,FALSE) -> 1920 | Y199: 0
A200: 70 | B200: 50 | C200: 4 | D200: =CONCATENATE(A200,B200,C200) -> 70504 | E200: Triathon des neiges | F200: Distance XS | G200: Total | H200: =+SUM(H197:H199) -> 8500 | I200: =SUM(I197:I198) -> 6050 | J200: 4950 | N200: =SUM(N197:N198) -> 23 | O200: =SUM(O197:O198) -> 28.75 | Q200: =SUM(Q197:Q198) -> 120 | R200: =SUM(R197:R199) -> 8500 | S200: =SUM(S197:S199) -> 10625 | U200: =SUM(U197:U199) -> 4250 | V200: =VLOOKUP(F200,AGE!F:J,4,FALSE) -> 2007 | W200: =VLOOKUP(F200,AGE!F:J,5,FALSE) -> 1920 | Y200: 0
A201: 70 | B201: 60 | C201: 1 | D201: 70601 | E201: Triathon des neiges | F201: Distance S | G201: Course à pied | H201: 4000 | I201: =H201*1.1 -> 4400 | J201: =H201*0.9 -> 3600 | K201: 4.5 | L201: Min/km | M201: =IF(L201="Sec/100m",((K201)/60/100),(IF(L201="Km/h",60/K201/1000,(IF(L201="Min/km",K201/1000,""))))) -> 0.0045 | N201: =H201*M201 -> 18 | O201: =N201*1.25 -> 22.5 | P201: =N201*1.4 -> 25.2 | Q201: =O197 -> 11.25 | R201: =N201/M201 -> 4000 | S201: =O201/M201 -> 5000 | T201: =P201/M201 -> 5600 | U201: =S197 -> 2500 | V201: =VLOOKUP(F201,AGE!F:J,4,FALSE) -> 2003 | W201: =VLOOKUP(F201,AGE!F:J,5,FALSE) -> 1920 | Y201: 0
... 41 more rows

Sheet AGE (hidden)
B1: MOIS A PARTIR DUQUEL ON AFFICHE LES CATEGORIES D'AGE DE LA SAISON SUIVANTE : | D1: ANNEE AFFICHEE | F1: Course | G1: Age atteint au cours de la saison mini | H1: Age atteint au cours de la saison maxi | I1: ANNEE mini | J1: ANNEE maxi
B2: 9 | D2: =IF(MONTH(TODAY())>=B2,YEAR(TODAY())+1,YEAR(TODAY())) -> 2019 | F2: Jeune 6-9 | G2: 6 | H2: 9 | I2: =$D$2-G2 -> 2013 | J2: =$D$2-H2 -> 2010
F3: Jeune 8-11 | G3: 8 | H3: 11 | I3: =$D$2-G3 -> 2011 | J3: 2008
F4: Jeune 10-13 | G4: 10 | H4: 13 | I4: 2009 | J4: 2006
F5: Jeune 12-19 | G5: 12 | H5: 19 | I5: 2007 | J5: 2000
F6: Distance XS | G6: 12 | H6: 99 | I6: 2007 | J6: 1920
F7: Distance S | G7: 16 | H7: 99 | I7: 2003 | J7: 1920
F8: Distance M | G8: 18 | H8: 99 | I8: 2001 | J8: 1920
F9: Distance L | G9: 18 | H9: 99 | I9: 2001 | J9: 1920
F10: Distance XL | G10: 18 | H10: 99 | I10: 2001 | J10: 1920
F11: Distance XXL | G11: 18 | H11: 99 | I11: 2001 | J11: 1920

Sheet Visualisation
A1: V 2 | C1: Saisie case en Jaune | J1: 4 | K1: 5 | L1: 6 | M1: 7 | N1: 11 | O1: 12 | P1: 13 | Q1: 14 | R1: 16 | S1: 17 | T1: 18
C4: Triathlon, Duathlon, Aquathlon, Swimrun Distances possibles | K4: Epreuve Officielle | N4: =IF(OR(C12="Raid",C12="Bike_and_Run",C12="Swim_Run"),"","Epreuve Assimilée") -> Epreuve Assimilée
C5: Sélectionner la Compétition | D5: Sélectionner le type d'épreuve | J5: Discipline | K5: Distance Officielle | L5: Tolérance Max +10% | M5: Tolérance Min -10% | N5: Limite Haute 25% (distance) | O5: Limite Haute 40% jeunes (Distance) | P5: Limite Basse (distance)
E6: =VLOOKUP(C6,'Liste déroulante'!$B$5:$C$14,2) ->  | F6: =VLOOKUP(D6,'Liste déroulante'!E5:F14,2) ->  | G6: 1 | H6: =CONCATENATE(E6,F6,G6) ->  | I6: =IF(COUNTIF(Données!D:D,Visualisation!H6)>0, "vrai","faux") -> faux | J6: =IF($I6="FAUX","",VLOOKUP($H6,Données!$D$5:$U$241,$J$1)) ->  | K6: =IF($I6="FAUX","",VLOOKUP($H6,Données!$D$5:$U$241,K1)) ->  | L6: =IF($I6="FAUX","",VLOOKUP($H6,Données!$D$5:$U$241,L1)) ->  | M6: =IF($I6="FAUX","",VLOOKUP($H6,Données!$D$5:$U$241,M1)) ->  | N6: =IF($I6="FAUX","",VLOOKUP($H6,Données!$D$5:$U$241,R1)) ->  | O6: =IF($I6="FAUX","",VLOOKUP($H6,Données!$D$5:$U$241,S1)) ->  | P6: =IF($I6="FAUX","",VLOOKUP($H6,Données!$D$5:$U$241,T1)) -> 
G7: 2 | H7: =CONCATENATE(E6,F6,G7) ->  | I7: =IF(COUNTIF(Données!D:D,Visualisation!H7)>0, "vrai","faux") -> faux | J7: =IF($I7="FAUX","",VLOOKUP($H7,Données!$D$5:$U$241,J1)) ->  | K7: =IF($I7="FAUX","",VLOOKUP($H7,Données!$D$5:$U$241,K1)) ->  | L7: =IF($I7="FAUX","",VLOOKUP($H7,Données!$D$5:$U$241,L1)) ->  | M7: =IF($I7="FAUX","",VLOOKUP($H7,Données!$D$5:$U$241,M1)) ->  | N7: =IF($I7="FAUX","",VLOOKUP($H7,Données!$D$5:$U$241,R1)) ->  | O7: =IF($I7="FAUX","",VLOOKUP($H7,Données!$D$5:$U$241,S1)) ->  | P7: =IF($I7="FAUX","",VLOOKUP($H7,Données!$D$5:$U$241,T1)) -> 
G8: =IF(C6="Aquathlon","",3) -> 3 | H8: =CONCATENATE(E6,F6,G8) ->  | I8: =IF(COUNTIF(Données!D:D,Visualisation!H8)>0, "vrai","faux") -> faux | J8: =IF($I8="FAUX","",VLOOKUP($H8,Données!$D$5:$U$241,J1)) ->  | K8: =IF($I8="FAUX","",VLOOKUP($H8,Données!$D$5:$U$241,K1)) ->  | L8: =IF($I8="FAUX","",VLOOKUP($H8,Données!$D$5:$U$241,L1)) ->  | M8: =IF($I8="FAUX","",VLOOKUP($H8,Données!$D$5:$U$241,M1)) ->  | N8: =IF($I8="FAUX","",VLOOKUP($H8,Données!$D$5:$U$241,R1)) ->  | O8: =IF($I8="FAUX","",VLOOKUP($H8,Données!$D$5:$U$241,S1)) ->  | P8: =IF($I8="FAUX","",VLOOKUP($H8,Données!$D$5:$U$241,T1)) -> 
G9: 4 | H9: =CONCATENATE(E6,F6,G9) ->  | I9: =IF(COUNTIF(Données!D:D,Visualisation!H9)>0, "vrai","faux") -> faux | J9: =IF($I9="FAUX","",VLOOKUP($H9,Données!$D$5:$U$241,J1)) ->  | K9: =IF($I9="FAUX","",VLOOKUP($H9,Données!$D$5:$U$241,K1)) ->  | L9: =IF($I9="FAUX","",VLOOKUP($H9,Données!$D$5:$U$241,L1)) ->  | M9: =IF($I9="FAUX","",VLOOKUP($H9,Données!$D$5:$U$241,M1)) ->  | N9: =IF($I9="FAUX","",VLOOKUP($H9,Données!$D$5:$U$241,R1)) ->  | O9: =IF($I9="FAUX","",VLOOKUP($H9,Données!$D$5:$U$241,S1)) ->  | P9: =IF($I9="FAUX","",VLOOKUP($H9,Données!$D$5:$U$241,T1)) -> 
C11: Contrôlez vos distances | J11: Discipline | K11: Saisir les distances en mètre | L11: Epreuve Officielle | N11: =IF(OR(C12="Raid",C12="Bike and Run",C12="Swim Run"),"","Epreuve Assimilée") -> Epreuve Assimilée | Q11: =CONCATENATE("Année de naissance saison ",AGE!D2) -> Année de naissance saison 2019
C12: =+C6 -> 0 | D12: =+D6 -> 0 | J12: =+J6 ->  | L12: =IF($K12=0,"",IF(AND($K12>=M6,$K12<=L6),"Approuvé","Refusé")) ->  | N12: =IF(K12=0,"",IF(O6=0,"",(IF(OR(K12>O6,K12<P6),"Refusé","Approuvé")))) ->  | Q12: Mini
J13: =+J7 ->  | L13: =IF($K13=0,"",IF(L7="","",IF(AND($K13>=M7,$K13<=L7),"Approuvé","Refusé"))) ->  | N13: =IF(K13=0,"",IF(O7="","",IF(O7=0,"",(IF(OR(K13>O7,K13<P7),"Refusé","Approuvé"))))) ->  | Q13: =IF($I9="FAUX","",VLOOKUP($H9,Données!$D$5:$W$241,19)) -> 
J14: =+J8 ->  | L14: =IF($K14=0,"",IF(L8="","",IF(AND($K14>=M8,$K14<=L8),"Approuvé","Refusé"))) ->  | N14: =IF(K14=0,"",IF(O8="","",IF(O8=0,"",(IF(OR(K14>O8,K14<P8),"Refusé","Approuvé"))))) ->  | Q14: Maxi
K15: =IF(J14="",SUM(K12:K13),SUM(K12:K14)) -> 0 | L15: =IF(L12="Refusé","Refusé",IF(L13="Refusé","Refusé",IF(L14="Refusé","Refusé",IF($K$15=0,"",IF(AND(K15>=M9,K15<=L9),"Approuvé","Refusé"))))) ->  | N15: =IF(N12="Refusé","Refusé",IF(N13="Refusé","Refusé",IF(N14="Refusé","Refusé",IF($K$15=0,"",IF(AND(K15>=P9,K15<=N9),"Approuvé",IF(P9="","","Refusé")))))) ->  | Q15: =IF($I9="FAUX","",VLOOKUP($H9,Données!$D$5:$W$241,20)) -> 
C19: Bike&Run & Raid Temps estimé | J19: Epreuve Officielle | N19: =CONCATENATE("Année de naissance saison ",AGE!D2) -> Année de naissance saison 2019
C20: Sélectionner la Compétition | D20: Sélectionner le type d'épreuve | J20: Temps Moyen | K20: Temps Max | L20: Temps Min | N20: Mini
E21: =VLOOKUP(C21,'Liste déroulante'!$B$5:$C$14,2) ->  | F21: =VLOOKUP(D21,'Liste déroulante'!E5:F14,2) ->  | G21: 1 | H21: =CONCATENATE(E21,F21,G21) ->  | I21: =IF(COUNTIF(Données!D:D,Visualisation!H21)>0, "vrai","faux") -> faux | J21: =IF($I21="FAUX","",VLOOKUP($H21,Données!$D$5:$U$241,N1)) ->  | K21: =IF($I21="FAUX","",VLOOKUP($H21,Données!$D$5:$U$241,O1)) ->  | L21: =IF($I21="FAUX","",VLOOKUP($H21,Données!$D$5:$U$241,Q1)) ->  | N21: =IF($I21="FAUX","",VLOOKUP($H21,Données!$D$5:$W$241,19)) -> 
J22: =IF(J21="","",J21/60/24) ->  | K22: =IF(J21="","",K21/60/24) ->  | L22: =IF(J21="","",L21/60/24) ->  | N22: Maxi
N23: =IF($I21="FAUX","",VLOOKUP($H21,Données!$D$5:$W$241,20)) -> 

Sheet Liste déroulante (hidden)
B1: Distance officielle | Z1: MOIS
V2: 10 | W2: Jeune 6-9 | Z2: 1
V3: 20 | W3: Jeune 8-11 | Z3: 2
B4: Type d'épreuve | E4: Catégorie d'âge | G4: Mini | H4: Mini | V4: 30 | W4: Jeunes 10-13 | Z4: 3
B5: Aquathlon | C5: 50 | D5: =+VLOOKUP(B5,'Liste déroulante'!$B$5:$C$14,2) -> 50 | E5: Distance L | F5: 80 | G5: =+G23 -> 2000 | H5: =+H23 -> 1919 | I5: =+VLOOKUP(E5,$E$5:$F$14,2) -> 80 | J5: Aquathlon | K5: Jeune 6-9 | L5: Jeune 8-11 | M5: Jeune 10-13 | N5: Jeune 12-19 | O5: Distance XS | P5: Distance S | Q5: Distance M | R5: Distance L | S5: Distance XL | V5: 40 | W5: Jeune 12-19 | Z5: 4
B6: Bike_and_Run | C6: 60 | D6: =+VLOOKUP(B6,'Liste déroulante'!$B$5:$C$14,2) -> 60 | E6: Distance M | F6: 70 | G6: =+G22 -> 2000 | H6: =+H22 -> 1919 | I6: 70 | J6: Cross_Duathlon | K6: Jeune 6-9 | L6: Jeune 8-11 | M6: Jeune 10-13 | N6: Jeune 12-19 | O6: Distance XS | P6: Distance S | Q6: Distance M | R6: Distance L | S6: Distance XL | V6: 50 | W6: Distance XS | Z6: 5
B7: Cross_Duathlon | C7: 40 | D7: =+VLOOKUP(B7,'Liste déroulante'!$B$5:$C$14,2) -> 40 | E7: Distance S | F7: 60 | G7: =+G21 -> 2002 | H7: =+H21 -> 1919 | I7: 60 | J7: Cross_Triathlon | K7: Jeune 6-9 | L7: Jeune 8-11 | M7: Jeune 10-13 | N7: Jeune 12-19 | O7: Distance XS | P7: Distance S | Q7: Distance M | R7: Distance L | S7: Distance XL | V7: 60 | W7: Distance S | Z7: 6
B8: Cross_Triathlon | C8: 20 | D8: =+VLOOKUP(B8,'Liste déroulante'!$B$5:$C$14,2) -> 20 | E8: Distance XL | F8: 90 | G8: =+G24 -> 2000 | H8: =+H24 -> 1919 | I8: 90 | J8: Duathlon | K8: Jeune 6-9 | L8: Jeune 8-11 | M8: Jeune 10-13 | N8: Jeune 12-19 | O8: Distance XS | P8: Distance S | Q8: Distance M | R8: Distance L | S8: Distance XL | V8: 70 | W8: Distance M | Z8: 7
B9: Duathlon | C9: 30 | D9: =+VLOOKUP(B9,'Liste déroulante'!$B$5:$C$14,2) -> 30 | E9: Distance XS | F9: 50 | G9: =+G20 -> 2006 | H9: =+H20 -> 1919 | I9: 50 | J9: Duathlon_des_neiges | K9: Distance XS | L9: Distance S | M9: Distance M | V9: 80 | W9: Distance L | Z9: 8
B10: Duathlon_des_neiges | C10: 80 | D10: =+VLOOKUP(B10,'Liste déroulante'!$B$5:$C$14,2) -> 80 | E10: Distance XXL | F10: 91 | G10: =+G25 -> 2000 | H10: =+H25 -> 1919 | I10: 91 | J10: Triathlon | K10: Jeune 6-9 | L10: Jeune 8-11 | M10: Jeune 10-13 | N10: Jeune 12-19 | O10: Distance XS | P10: Distance S | Q10: Distance M | R10: Distance L | S10: Distance XL | T10: Distance XXL | V10: 90 | W10: Distance XL | Z10: 9
B11: Raid | C11: 90 | D11: =+VLOOKUP(B11,'Liste déroulante'!$B$5:$C$14,2) -> 90 | E11: Jeune 10 - 13 | F11: 30 | G11: =+G18 -> 2008 | H11: =+H18 -> 2005 | I11: 30 | J11: Triathon_des_neiges | K11: Distance XS | L11: Distance S | M11: Distance M | V11: 91 | W11: Distance XXL | Z11: 10
B12: Swim_Run | C12: 91 | D12: =+VLOOKUP(B12,'Liste déroulante'!$B$5:$C$14,2) -> 91 | E12: Jeune 12 - 19 | F12: 40 | G12: =+G26 -> 2006 | H12: =+H26 -> 1999 | I12: =+VLOOKUP(E12,$E$5:$F$14,2) -> 40 | J12: Swim_Run | K12: Distance XS | L12: Distance S | M12: Distance M | N12: Distance L | O12: Distance XL | V12: 91 | W12: Distance XXL | Z12: 11
B13: Triathlon | C13: 10 | D13: =+VLOOKUP(B13,'Liste déroulante'!$B$5:$C$14,2) -> 10 | E13: Jeune 6 - 9 | F13: 10 | G13: =+G19 -> 2012 | H13: =+H19 -> 2009 | I13: =+VLOOKUP(E13,$E$5:$F$14,2) -> 10 | J13: Bike_and_Run | K13: Jeune 6-9 | L13: Jeune 8-11 | M13: Jeune 10-13 | N13: Jeune 12-19 | O13: Distance XS | P13: Distance S | Q13: Distance M | R13: Distance L | Z13: 12
B14: Triathon_des_neiges | C14: 70 | D14: =+VLOOKUP(B14,'Liste déroulante'!$B$5:$C$14,2) -> 70 | E14: Jeune 8 - 11 | F14: 20 | G14: =+G16 -> 2010 | H14: =+H16 -> 2007 | I14: 20 | J14: Raid | K14: Jeune 6-9 | L14: Jeune 8-11 | M14: Jeune 10-13 | N14: Jeune 12-19 | O14: Distance XS | P14: Distance S | Q14: Distance M | R14: Distance L | S14: Distance XL | T14: Distance XXL
E16: =+E14 -> Jeune 8 - 11 | G16: 2010 | H16: 2007
E17: =+E10 -> Distance XXL | G17: 2000 | H17: 1919
E18: =+E11 -> Jeune 10 - 13 | G18: 2008 | H18: 2005
E19: =+E13 -> Jeune 6 - 9 | G19: 2012 | H19: 2009
E20: Distance XS | G20: 2006 | H20: 1919
E21: Distance S | G21: 2002 | H21: 1919
E22: Distance M | G22: 2000 | H22: 1919
E23: Distance L | G23: 2000 | H23: 1919
E24: Distance XL | G24: 2000 | H24: 1919
E25: Distance XXL | G25: 2000 | H25: 1919
E26: Jeune 12 - 19 | G26: 2006 | H26: 1999
